Cogmind - Beta 16.1 @@@ ROGUE MODE // 2026.03.02 @ 18:02:45 Player: C0-2MO Result: Destroyed by B-90 Cyclops with Nova Cannon Performance ------------- Evolutions (8) 4000 Regions Visited (28) 5600 Robots Destroyed (183) 915 Value Destroyed (7596) 7596 Prototype IDs (167) 3340 Alien Tech Used (6) 1200 Bonus (5037) 5037 TOTAL SCORE: 27688 Bonus ------- High Alert Combat Kills 549 Follower Combat Kills 1434 Hunted by Unchained 500 Forged Quantum Companion 1000 Network Hubs Disabled 400 Registered with UFD 300 Met Zhirov 300 MAIN.C Attacked Warlord 500 Warlord Defense Kills 54 Cogmind --------- Core Integrity 0/1450 Matter 293/300 Energy 19/100 System Corruption 14% Temperature Cool (10) Movement Flying (30) Location -2/Protoforge Parts ------- > --- POWER (3) -------- (None) > --- PROPULSION (8) --- Biomechanical Wings Experimental Biomechanical Wings Concept Fieldthrust Drive > --- UTILITY (10) ----- Experimental Signal Interpreter Femtoactuators Concept Cloak Mesh Experimental Hacking Suite System Mapper Experimental System Purifier > --- WEAPON (2) ------- Quantum Companion > --- INVENTORY (5) ---- Concept Projectile Intercept Suite Experimental Cloaking Device Concept Impact Drone Bay (5/6) Peak State ------------ > --- POWER ------------ Light Neutrino Core Micro Antimatter Reactor Micro Antimatter Reactor > --- PROPULSION ------- Biomechanical Wings Field Propulsion Array Impulse Thruster Array Experimental Biomechanical Wings Experimental Biomechanical Wings Concept Fieldthrust Drive > --- UTILITY ---------- Large Storage Unit Experimental Signal Interpreter Concept Networked Targeting System Femtoactuators Experimental Reaction Control System Concept RG22 Armor Experimental Hacking Suite System Mapper Ghost Barrier Experimental System Purifier > --- WEAPON ----------- Concept Rapid Grenade Launcher Quantum Companion > --- INVENTORY -------- Concept Fieldthrust Drive Concept Projectile Intercept Suite Concept Projectile Intercept Suite Experimental Reaction Control System Experimental Cloaking Device Concept RG22 Armor Graphene Brace Crosscalibrator Transdimensional Reconstructor Supercharged TR Core Cannon Perforator Sapper Charge [Rating: 223] Favorites ----------- Power Micro Antimatter Reactor Engine Light Angular Momentum Engine Power Core Enhanced Fission Core Reactor Micro Antimatter Reactor Propulsion Biomechanical Wings Treads Light Treads Flight Unit Biomechanical Wings Utility Hacking Suite Device Structural Scanner Storage Large Storage Unit Processor Experimental Signal Interpreter Hackware Hacking Suite Protection Centrium Medium Armor Plating Weapon Companion Sword Energy Gun Vortex Rail Energy Cannon Core Cannon Ballistic Gun Light Assault Rifle Ballistic Cannon Perforator Launcher Concept Rapid Grenade Launcher Special Weapon Improved Plasma Cutter Slashing Weapon Companion Sword Special Melee Weapon Advanced Datajack Build | -11 -10 -10 -10 -9 -8 -8 -8 -8 -6 -6 -6 -5 -5 -5 -5 -5 -4 -4 -4 -4 -4 -4 -3 -3 -3 -2 -2 -2 ------- Run | Yrd Mat Min Exi Min Mat Sto Rec Scr Fac Was Fac Fac Ext Cet Arc Hub Fac Was Fac Upp Upp War Pro Res Tes Res Qua Frg Slots Evolved 16 | . . . . . 4 . . . 4 . . 2 . . . . 2 . . . . . . 2 . 2 . . Power 2 | . . . . . . . . . . . . 1 . . . . . . . . . . . . . 1 . . Propulsion 6 | . . . . . 2 . . . 2 . . . . . . . . . . . . . . 1 . 1 . . Utility 8 | . . . . . 2 . . . 2 . . 1 . . . . 2 . . . . . . 1 . . . . Weapon . | . . . . . . . . . . . . . . . . . . . . . . . . . . . . . Parts Attached 195 | 6 11 4 . 4 12 4 2 3 24 1 13 12 9 5 2 2 9 1 6 1 1 4 3 13 7 6 5 25 Power 27 | . 2 . . . 2 . . 1 2 . 1 3 1 . . . 1 1 1 . . . . 4 1 1 1 5 Engine 9 | . 2 . . . 2 . . . 1 . 1 1 . . . . . . . . . . . 2 . . . . Core 7 | . . . . . . . . 1 1 . . 2 1 . . . . 1 . . . . . . . . . 1 Reactor 11 | . . . . . . . . . . . . . . . . . 1 . 1 . . . . 2 1 1 1 4 Propulsion 64 | 2 5 1 . 1 6 3 . . 12 1 4 3 4 2 . . 1 . 3 . . 1 1 4 2 1 2 5 Treads 2 | 2 . . . . . . . . . . . . . . . . . . . . . . . . . . . . Leg . | . . . . . . . . . . . . . . . . . . . . . . . . . . . . . Wheel . | . . . . . . . . . . . . . . . . . . . . . . . . . . . . . Hover . | . . . . . . . . . . . . . . . . . . . . . . . . . . . . . Flight 62 | . 5 1 . 1 6 3 . . 12 1 4 3 4 2 . . 1 . 3 . . 1 1 4 2 1 2 5 Utility 78 | 1 1 1 . . 4 . 2 1 9 . 8 6 3 3 2 2 7 . 2 1 1 2 2 4 2 2 1 11 Device 42 | 1 . . . . 1 . . . 7 . 3 3 1 1 1 2 2 . 1 . 1 1 2 3 1 1 1 9 Storage 5 | . . 1 . . 1 . . . . . 1 . . . . . . . 1 . . . . . . . . 1 Processor 12 | . 1 . . . 2 . . 1 1 . 1 . 1 1 . . 4 . . . . . . . . . . . Hackware 12 | . . . . . . . 2 . 1 . 1 1 . . 1 . 1 . . 1 . 1 . 1 1 1 . . Protection 7 | . . . . . . . . . . . 2 2 1 1 . . . . . . . . . . . . . 1 Artifact . | . . . . . . . . . . . . . . . . . . . . . . . . . . . . . Weapon 26 | 3 3 2 . 3 . 1 . 1 1 . . . 1 . . . . . . . . 1 . 1 2 2 1 4 Energy Gun 1 | . . . . . . . . . . . . . . . . . . . . . . 1 . . . . . . Energy Cannon 2 | . . . . . . . . . . . . . . . . . . . . . . . . . . . 1 1 Ballistic Gun 9 | 3 3 1 . 1 . 1 . . . . . . . . . . . . . . . . . . . . . . Ballistic Cannon 1 | . . . . . . . . . . . . . . . . . . . . . . . . . 1 . . . Launcher 4 | . . 1 . 1 . . . . . . . . . . . . . . . . . . . . . . . 2 Special Weapon 1 | . . . . . . . . . . . . . 1 . . . . . . . . . . . . . . . Impact Weapon . | . . . . . . . . . . . . . . . . . . . . . . . . . . . . . Slashing Weapon 4 | . . . . 1 . . . 1 . . . . . . . . . . . . . . . . 1 . . 1 Piercing Weapon . | . . . . . . . . . . . . . . . . . . . . . . . . . . . . . Special Melee Weapon 4 | . . . . . . . . . 1 . . . . . . . . . . . . . . 1 . 2 . . Unidentified Prototypes 20 | . . . . . 2 1 . 1 1 . . 1 . 1 . . . . . . . . . . . . 4 9 Parts Lost 69 | . 1 . . 1 . 1 . . 18 1 3 7 1 7 . . . . . . . . 1 6 . 3 2 17 Power 14 | . . . . . . . . . 2 . 1 2 . 1 . . . . . . . . . 2 . 1 . 5 Propulsion 34 | . 1 . . 1 . 1 . . 12 1 1 3 1 4 . . . . . . . . 1 1 . . 1 6 Utility 19 | . . . . . . . . . 4 . 1 2 . 2 . . . . . . . . . 2 . 2 1 5 Weapon 2 | . . . . . . . . . . . . . . . . . . . . . . . . 1 . . . 1 Highest Loss Streak 10 | . 1 . . 1 . 1 . . 10 1 1 3 1 3 . . . . . . . . 1 5 . 3 2 6 To Critical Strikes . | . . . . . . . . . . . . . . . . . . . . . . . . . . . . . Average Backups 7 | 1 4 7 8 7 8 9 8 9 4 4 4 3 3 3 3 4 4 4 4 7 7 9 10 10 12 10 9 8 Power . | . . . 1 1 . 1 1 . . . . . . . . . . . . 1 1 1 1 2 2 1 1 . Propulsion 1 | . 1 3 3 2 3 3 3 3 . . . . . 1 . . . . . 1 1 1 2 1 3 1 1 . Utility 3 | . . 1 2 2 2 3 2 3 2 3 3 1 1 1 2 4 3 3 3 5 5 6 7 6 5 5 3 5 Weapon . | . 1 1 1 1 1 1 1 . . . . . . . . . . . . . . . . . 1 2 2 1 Tool/Special . | . . . . . . . . . . . . . . . . . . . . . . . . . . . . . Unused Backups 24 | . . . . . 1 1 . 1 2 . 1 . 1 . . . . . 2 . . . . 3 4 . 2 6 Power 1 | . . . . . . . . . . . . . 1 . . . . . . . . . . . . . . . Propulsion 3 | . . . . . . 1 . . . . . . . . . . . . . . . . . 1 1 . . . Utility 11 | . . . . . . . . . 1 . . . . . . . . . 2 . . . . 2 1 . . 5 Weapon 4 | . . . . . . . . 1 . . . . . . . . . . . . . . . . 2 . 1 . Tool/Special 5 | . . . . . 1 . . . 1 . 1 . . . . . . . . . . . . . . . 1 1 Average Slot Usage (%) 84 | . 90 88 85 84 98 100 100 96 68 80 85 71 76 79 72 76 77 89 88 84 84 88 89 88 85 87 87 78 Engine 2 | . 8 3 . . 8 9 9 . 1 6 5 3 . . . . . . . . . 4 5 3 . . . . Core 2 | . . . . . . . . 8 3 . . 2 7 8 5 5 4 9 8 . . . . . . 3 4 1 Reactor 3 | . . . . . . . . . . . . . . . . . 1 . 1 5 5 5 5 4 9 7 7 8 Flight 26 | . 17 28 28 27 35 36 36 36 24 26 36 23 25 26 23 23 24 26 26 26 26 26 26 26 23 26 26 21 Device 11 | . 14 3 . . 8 9 . . 9 13 7 11 10 10 11 14 14 5 8 10 14 15 15 15 19 17 18 18 Storage 3 | . . 10 14 14 9 9 9 9 1 . 1 . . . . . . . . 5 5 5 5 4 4 4 4 3 Processor 9 | . 10 14 14 14 17 18 9 9 2 6 6 5 7 10 11 7 11 21 16 15 10 10 10 9 9 8 5 4 Hackware 11 | . . . . . . . 17 18 18 20 14 11 11 11 13 17 15 15 15 15 15 15 15 14 14 13 13 12 Protection 1 | . . . . . . . . . . . 4 3 4 3 . . . 5 4 . . . . 1 . . . 1 Ballistic Gun 3 | . 28 27 28 16 8 9 9 6 . . . . . . . . . . . . . . . . . . . . Slashing Weapon 5 | . . . . 9 9 9 9 9 6 6 6 5 5 5 5 5 5 5 5 5 5 5 5 4 3 4 4 3 Peak Build Rating 223 | 5 8 8 7 10 32 37 37 38 50 50 60 85 79 78 58 62 104 104 117 108 105 122 119 150 170 182 193 223 Average Rating 92 | 3 7 7 7 9 28 34 37 37 38 44 54 71 74 67 54 58 75 100 108 103 104 117 116 140 155 175 179 176 On Entrance 70 | . 5 8 7 7 10 31 37 37 38 44 44 56 79 78 52 58 57 104 100 103 103 105 119 115 139 159 168 177 Avg Prop Armor Cover (%) 13 | 26 28 . . . . . . . 15 5 1 . . . . . . . . . . . . . . . . 4 Naked Turns . | . . . . . . . . . . . . . . . . . . . . . . . . . . . . . Heaviest Build 78 | 3 6 7 7 8 19 21 21 20 20 16 36 39 39 35 20 20 37 37 38 38 40 42 43 51 52 62 61 78 Greatest Support 68 | 3 8 8 8 8 22 23 22 22 28 22 40 39 39 38 21 21 37 37 43 43 43 44 44 55 57 65 64 68 Greatest Overweight (x) 2 | . 1 . . . 1 . . . 1 . 1 1 1 1 . . . . . . . . . . . . . 2 Average Overweight (x) . | . . . . . . . . . . . . . . . . . . . . . . . . . . . . . Largest Inventory Capacity 15 | 5 5 8 8 8 10 10 10 10 10 5 15 5 5 5 5 5 5 5 15 15 15 15 15 15 15 15 15 15 Average Capacity 10 | 5 5 7 8 8 9 10 10 10 5 5 6 5 5 5 5 5 5 5 5 15 15 15 15 15 15 15 15 13 Most Carried 15 | 2 5 8 8 8 10 10 9 10 10 5 7 5 5 5 5 5 5 4 7 7 8 10 13 15 15 15 15 15 Average Carried 8 | 1 4 7 8 7 8 9 8 9 5 4 5 4 4 3 3 4 4 4 4 7 7 9 11 12 14 14 14 11 Final Capacity 15 | 5 5 8 8 8 10 10 10 10 5 5 5 5 5 5 5 5 5 5 15 15 15 15 15 15 15 15 15 5 Final Carried 15 | 2 5 8 8 7 10 9 8 9 5 5 5 4 5 3 5 5 4 4 7 7 8 10 12 14 15 15 12 3 Class Distribution -------------------- 48% | Hacker-Sprinter 12% | Hacker-Ninja 10% | Hacker-Scout 8% | Scavenger-Mutant 4% | Scientist-Scout 4% | Hacker-Mutant Dominant Class ---------------- Scavenger-Mutant | -10/Materials Scavenger-Mutant | -10/Mines Scavenger-Mutant | -10/Exiles Scavenger-Mutant | -9/Mines Scientist-Scout | -8/Materials Scout | -8/Storage Hacker-Sprinter | -8/Recycling Hacker-Sprinter | -8/Scraptown Hacker-Sprinter | -6/Factory Hacker-Sprinter | -6/Waste Scientist-Sprinter | -6/Factory Hacker-Sprinter | -5/Factory Hacker-Sprinter | -5/Extension Scavenger-Sprinter | -5/Cetus Scavenger-Sprinter | -5/Archives Scavenger-Sprinter | -5/Hub_04(d) Hacker-Sprinter | -4/Factory Hacker-Sprinter | -4/Waste Hacker-Scout | -4/Factory Hacker-Scout | -4/Upper Caves Hacker-Scout | -4/Upper Caves Hacker-Sprinter | -4/Warlord Hacker-Scout | -3/Proximity Caves Hacker-Ninja | -3/Research Hacker-Sprinter | -3/Testing Hacker-Ninja | -2/Research Hacker-Ninja | -2/Quarantine Hacker-Sprinter | -2/Protoforge Resources | -11 -10 -10 -10 -9 -8 -8 -8 -8 -6 -6 -6 -5 -5 -5 -5 -5 -4 -4 -4 -4 -4 -4 -3 -3 -3 -2 -2 -2 ----------- Run | Yrd Mat Min Exi Min Mat Sto Rec Scr Fac Was Fac Fac Ext Cet Arc Hub Fac Was Fac Upp Upp War Pro Res Tes Res Qua Frg Matter Collected 4285 | 280 194 108 . 96 214 20 55 10 210 5 190 110 105 47 20 . 49 111 50 30 10 70 20 222 223 128 148 1560 Remotely . | . . . . . . . . . . . . . . . . . . . . . . . . . . . . . Salvage Created 8771 | 110 229 126 . 95 169 . . . 652 . 712 838 158 226 171 . 49 30 560 . . 17 82 1052 641 162 240 2452 Parts 451 | 7 29 11 . 10 10 . . . 42 . 20 30 11 13 11 . 4 2 22 . . 2 5 43 26 10 6 137 Haulers Intercepted 7 | . . . . . 1 . . . . . 1 1 . . . . . . 2 . . . . 1 . . 1 . Recyclers Shooed 3 | . 1 . . . . . . . . . . . 1 . . . . . 1 . . . . . . . . . Parts Field Recycled . | . . . . . . . . . . . . . . . . . . . . . . . . . . . . . Retrieved Matter . | . . . . . . . . . . . . . . . . . . . . . . . . . . . . . Parts Self-Destructed 5 | . . . . . . . . . . . . . . . . . . . . . . . 5 . . . . . Prevented . | . . . . . . . . . . . . . . . . . . . . . . . . . . . . . Parts Restored 4 | . . . . . . . . . . . . . . . . . . . . . . . . . . . . 4 Faulty 4 | . . . . . . . . . . . . . . . . . . . . . . . . . . . . 4 Kills | -11 -10 -10 -10 -9 -8 -8 -8 -8 -6 -6 -6 -5 -5 -5 -5 -5 -4 -4 -4 -4 -4 -4 -3 -3 -3 -2 -2 -2 ------- Run | Yrd Mat Min Exi Min Mat Sto Rec Scr Fac Was Fac Fac Ext Cet Arc Hub Fac Was Fac Upp Upp War Pro Res Tes Res Qua Frg Combat Hostiles Destroyed 101 | . 10 7 . 7 4 . . . 8 . 5 10 3 3 . . . 1 3 . . 1 1 6 2 1 . 29 Melee 52 | . . . . . . . . . 8 . 5 10 3 3 . . . 1 3 . . 1 1 5 . . . 12 Guns 15 | . 10 4 . 1 . . . . . . . . . . . . . . . . . . . . . . . . Cannons 18 | . . . . . . . . . . . . . . . . . . . . . . . . 1 2 1 . 14 AOE 13 | . . 3 . 6 4 . . . . . . . . . . . . . . . . . . . . . . . Classes Destroyed 20 | 2 4 1 . . 1 . . . 3 . 1 1 . . . . . . . . . . 1 . 2 . . 4 Worker 6 | . . . . . . . . . 4 . . . . . . . . . . . . . . . . . . 2 Builder 13 | . . . . . . . . . 5 . 1 . . . . . 2 . 1 . . . . . . . 1 3 Tunneler 3 | 1 . . . 1 . . . . 1 . . . . . . . . . . . . . . . . . . . Hauler 7 | . . . . . 1 . . . . . 1 1 . . . . . . 2 . . . . 1 . . 1 . Recycler 13 | 1 . . . 1 1 . . . 2 . 2 1 . . . . . . 1 . . . . 3 1 . . . Mechanic 6 | . . 1 . . . . . . . . . . . . . . . . . . . . . 1 1 . . 3 Operator 10 | . 1 . . . 1 . . . 1 . . . . . . . . . . . . . . 3 1 3 . . Drone 2 | . . . . . . . . . . . . . . . . . . . . . . . 1 . . . . 1 Watcher 20 | . 2 . . . 2 . . . . . 1 1 1 1 . . . . 2 . . . 2 3 2 2 1 . Swarmer 43 | . 9 3 . 7 4 . . . 7 . 2 . 2 . . . . 1 2 . . 1 . 4 . 1 . . Grunt 12 | . 1 4 . . . . . . . . 1 4 . . . . . . . . . . . 2 . . . . Researcher 5 | . . . . . . . . . . . . . . . . . . . . . . . . . 1 . 1 3 Sentry 16 | . . . . . . . . . . . 2 1 1 . . . . . 1 . . . . . . . . 11 Specialist 2 | . . . . . . . . . . . . . . . . . . . . . . . . . 2 . . . Hunter 1 | . . . . . . . . . . . . 1 . . . . . . . . . . . . . . . . Programmer 14 | . . . . . . . . . 1 . . 4 . . . . . . . . . . . . . . . 9 Cetus Guard 3 | . . . . . . . . . . . . . . 3 . . . . . . . . . . . . . . Decapitator 6 | . . . . . . . . . . . . . . . . . . . . . . . . . . . . 6 Alpha 7 1 | . . . . . . . . . . . . . . . . . . . . . . . . . . . . 1 V-Series 1 | . . . . . . . . . . . . . . . . . . . . . . . . . . . . 1 Tinkerer 1 | . . . . . . . . . . . . . . . . . . . . . . . . . . . . 1 Best Kill Streak 7 | 2 4 5 . 4 5 . . . 3 . 3 3 2 3 . . 2 1 4 . . 1 1 7 2 1 2 4 Combat Bots Only 4 | . 4 4 . 4 4 . . . 2 . 3 3 2 3 . . . 1 1 . . 1 1 4 2 1 . 4 Max Kills in Single Turn 3 | 1 1 3 . 3 3 . . . 1 . 1 1 1 1 . . 1 1 1 . . 1 1 1 1 1 1 2 Gunslinging . | . . . . . . . . . . . . . . . . . . . . . . . . . . . . . Exploded 3 | . . 1 . 3 2 . . . . . . . . . . . . . . . . . . . . . . . Melee 1 | . . . . . . . . . 1 . 1 1 1 1 . . . 1 1 . . 1 1 1 . . . 1 Uniques/NPCs Destroyed . | . . . . . . . . . . . . . . . . . . . . . . . . . . . . . Combat | -11 -10 -10 -10 -9 -8 -8 -8 -8 -6 -6 -6 -5 -5 -5 -5 -5 -4 -4 -4 -4 -4 -4 -3 -3 -3 -2 -2 -2 -------- Run | Yrd Mat Min Exi Min Mat Sto Rec Scr Fac Was Fac Fac Ext Cet Arc Hub Fac Was Fac Upp Upp War Pro Res Tes Res Qua Frg Hostile Shots Fired 1046 | . 48 29 . 15 21 20 5 . 179 . 101 94 49 42 1 . 6 . 41 2 . 29 8 114 5 49 4 184 Missed 395 | . 15 5 . 4 8 14 2 . 62 . 43 32 9 9 1 . 3 . 23 2 . 15 6 62 2 32 . 46 Deflected 5 | . . . . . . . . . . . . . . . . . . . . . . . . 3 . . . 2 Hits 651 | . 33 24 . 11 13 6 3 . 117 . 58 62 40 33 . . 3 . 18 . . 14 2 52 3 17 4 138 Melee 18 | . . . . . . . . . . . 3 . . . . . . . . . . . . . . 6 . 9 Projectile 633 | . 33 24 . 11 13 6 3 . 117 . 55 62 40 33 . . 3 . 18 . . 14 2 52 3 11 4 129 AOE 6 | . . . . . . . . . . . . . . . . . . . . . . . . . . 3 . 3 Critical Strikes 29 | . . . . . . . . . 1 . . 2 . 2 . . . . 1 . . 1 . 1 . 4 1 16 Actively Blocked 16 | . . . . . . . . . . . . 2 . 2 . . . . . . . 1 . . . 4 1 6 Damage Taken 12574 | . 278 199 . 92 192 77 43 . 1618 36 706 1243 640 707 12 . 60 . 451 . . 134 58 1100 120 537 180 4091 Core 3447 | . 88 79 . 24 39 13 15 . 674 . 130 280 118 97 12 . 21 . 172 . . 49 34 255 31 110 . 1206 Absorbed by Shields 363 | . . . . . . . . . . . . . 176 187 . . . . . . . . . . . . . . Redirected to Shielding 113 | . . . . . . . . . . . 59 54 . . . . . . . . . . . . . . . . Ignored by Resistances 177 | . . . . . . . . . . . . . . . . . . . . . . . . . . . . 177 Regen/Repaired (Parts) 928 | . . . . . . 39 . 51 42 29 . . . . . . 133 23 15 . . . . . . . . 596 Core Remaining (%) 59 | 100 . . . 23 . . . 87 . . 5 . . . . 49 . . . . . . 76 . 78 . . . Volleys Fired 100 | 5 46 11 . 5 2 . . . . . . . . . . . . . . . . 1 . . 3 . . 27 Largest 2 | 2 2 2 . 2 1 . . . . . . . . . . . . . . . . 1 . . 1 . . 1 Hottest 300 | 40 40 50 . 53 33 . . . . . . . . . . . . . . . . 45 . . 100 . . 300 Shots Fired 167 | 10 92 22 . 10 2 . . . . . . . . . . . . . . . . 1 . . 3 . . 27 Gun 126 | 10 92 18 . 5 . . . . . . . . . . . . . . . . . 1 . . . . . . Cannon 28 | . . . . . . . . . . . . . . . . . . . . . . . . . 3 . . 25 Launcher 13 | . . 4 . 5 2 . . . . . . . . . . . . . . . . . . . . . . 2 Special . | . . . . . . . . . . . . . . . . . . . . . . . . . . . . . Kinetic 151 | 10 92 18 . 5 . . . . . . . . . . . . . . . . . . . . 3 . . 23 Thermal 2 | . . . . . . . . . . . . . . . . . . . . . . . . . . . . 2 Explosive 13 | . . 4 . 5 2 . . . . . . . . . . . . . . . . . . . . . . 2 Electromagnetic . | . . . . . . . . . . . . . . . . . . . . . . . . . . . . . Entropic 1 | . . . . . . . . . . . . . . . . . . . . . . 1 . . . . . . Robot Hit Streak 10 | 2 5 4 . 3 4 . . . . . . . . . . . . . . . . . . . 8 . . 10 Robot Miss Streak 9 | 1 5 1 . 1 . . . . . . . . . . . . . . . . . . . . 2 . . 9 Penetration Max 2 | . . . . . . . . . . . . . . . . . . . . . . . . . 1 . . 2 Secondary Targets 4 | . 2 2 . . . . . . . . . . . . . . . . . . . . . . . . . . Max Gunslinging Chain 1 | . 1 1 . . . . . . . . . . . . . . . . . . . . . . . . . . Autonomous 10 | . . . . . . . . . . . . . . . . . . . . . . . . 3 . 2 . 5 Shots Hit Robots 415 | 5 45 11 . 8 11 . . . 40 . 34 60 13 14 9 . 3 1 17 . . 2 4 26 22 9 7 74 Core Hits 225 | 3 23 14 . 7 8 . . . 16 . 12 17 5 7 5 . . . 9 . . 2 2 11 13 5 2 64 Critical Kills 18 | . . . . . . . . . . . . . . . . . . . . . . . . . 2 . . 16 Critical Parts Destroyed 29 | . . . . . . . . . . . . . . . . . . . . . . . . . 6 . . 23 Critical Strikes 62 | . . . . . 1 . . . . . 2 2 . 2 . . . . . . . . . . 8 . . 47 Destroy 53 | . . . . . . . . . . . . . . . . . . . . . . . . . 8 . . 45 Sever 1 | . . . . . 1 . . . . . . . . . . . . . . . . . . . . . . . Melee Attacks 648 | . . . . 5 33 14 1 . 76 . 56 87 19 15 12 1 11 1 35 . 3 4 11 72 43 37 25 87 Impact . | . . . . . . . . . . . . . . . . . . . . . . . . . . . . . Slashing 644 | . . . . 5 33 14 1 . 75 . 56 87 19 15 12 1 11 1 35 . 3 4 11 71 43 35 25 87 Piercing . | . . . . . . . . . . . . . . . . . . . . . . . . . . . . . Sneak Attacks 68 | . . . . 2 3 . . . 14 . 4 2 2 . . . 2 1 6 . . . 1 7 4 . 4 16 Combat Hostiles 10 | . . . . . . . . . . . . . 1 . . . . . 1 . . . 1 . . . . 7 Follow-up Attacks 9 | . . . . . . . . . 1 . . . 1 1 . . . . . . . . . 2 . . . 4 Damage Inflicted 25102 | 62 388 585 . 553 942 . . . 2247 . 1527 2819 625 622 952 . 252 81 1112 . . 93 270 2490 2612 887 512 5471 Guns 565 | 62 386 99 . 18 . . . . . . . . . . . . . . . . . . . . . . . . Cannons 1812 | . . . . . . . . . . . . . . . . . . . . . . . . 264 58 186 . 1304 Explosions 1362 | . . 486 . 379 423 . . . . . . . . . . . . . . . . . . . . . . 74 Melee 21361 | . . . . 156 519 . . . 2247 . 1527 2819 625 622 952 . 252 81 1112 . . 93 270 2226 2554 701 512 4093 Ramming 2 | . 2 . . . . . . . . . . . . . . . . . . . . . . . . . . . Kinetic 924 | 62 386 99 . 18 . . . . . . . . . . . . . . . . . . . . 58 . . 301 Thermal 600 | . . . . . . . . . . . . . . . . . . . . . . . . . . . . 600 Explosive 1362 | . . 486 . 379 423 . . . . . . . . . . . . . . . . . . . . . . 74 Electromagnetic . | . . . . . . . . . . . . . . . . . . . . . . . . . . . . . Impact . | . . . . . . . . . . . . . . . . . . . . . . . . . . . . . Slashing 21361 | . . . . 156 519 . . . 2247 . 1527 2819 625 622 952 . 252 81 1112 . . 93 270 2226 2554 701 512 4093 Piercing . | . . . . . . . . . . . . . . . . . . . . . . . . . . . . . Phasic 853 | . . . . . . . . . . . . . . . . . . . . . . . . 264 . 186 . 403 Highest Corruption 14 | . . . . . . . . . 1 . . 6 3 1 1 1 . . 2 2 2 2 . . . . . 14 Average Corruption 3 | . . . . . . . . . 1 . . 3 1 1 1 1 . . 1 2 2 2 . . . . . 6 Corruption Purged 14 | . . . . . . . . . 1 . . 2 3 . . 1 . . . . . . . . . . . 7 Corruption Blocked . | . . . . . . . . . . . . . . . . . . . . . . . . . . . . . Effects 29 | . . . . . . . . . . . . 3 3 1 1 . . . 1 1 2 . . . . . . 17 Message Errors 10 | . . . . . . . . . . . . 2 1 . 1 . . . . 1 1 . . . . . . 4 Matter Fused 6 | . . . . . . . . . . . . . . 1 . . . . . . . . . . . . . 5 Energy Discharges 3 | . . . . . . . . . . . . . . . . . . . . . . . . . . . . 3 Data Loss (minor) 4 | . . . . . . . . . . . . 1 . . . . . . 1 . 1 . . . . . . 1 Data Loss (major) 6 | . . . . . . . . . . . . . 2 . . . . . . . . . . . . . . 4 Overload Shots . | . . . . . . . . . . . . . . . . . . . . . . . . . . . . . Overflow Damage 3907 | . . 22 . 113 134 . . . 423 . 170 247 131 23 239 . 150 56 162 . . . 71 593 739 148 136 350 Projectiles 128 | . . . . . . . . . . . . . . . . . . . . . . . . 45 . . . 83 Explosions 113 | . . 22 . 76 15 . . . . . . . . . . . . . . . . . . . . . . . Melee 3666 | . . . . 37 119 . . . 423 . 170 247 131 23 239 . 150 56 162 . . . 71 548 739 148 136 267 Knockbacks 8 | . . . . . . . . . . . . . . . . . . . . . . . . . 4 . . 4 Impact . | . . . . . . . . . . . . . . . . . . . . . . . . . . . . . Kinetic 7 | . . . . . . . . . . . . . . . . . . . . . . . . . 3 . . 4 Secondary 1 | . . . . . . . . . . . . . . . . . . . . . . . . . 1 . . . Self-Inflicted Damage 32 | . 1 . . . 31 . . . . . . . . . . . . . . . . . . . . . . . Shots 2 | . . . . . 2 . . . . . . . . . . . . . . . . . . . . . . . Rammed 1 | . 1 . . . . . . . . . . . . . . . . . . . . . . . . . . . Targets Rammed 1 | . 1 . . . . . . . . . . . . . . . . . . . . . . . . . . . Kicked . | . . . . . . . . . . . . . . . . . . . . . . . . . . . . . Crushed . | . . . . . . . . . . . . . . . . . . . . . . . . . . . . . Highest Temperature 344 | . 10 29 . 4 4 4 4 . 4 . 108 13 5 1 . . 7 . 8 . . 12 . 2 126 220 180 344 Average Temperature 61 | . 4 10 . 3 4 4 4 . 4 . 26 4 2 1 . . 7 . 5 . . 12 . 2 11 93 54 130 Received Heat Transfer 1170 | . 18 27 . . 36 36 18 . 192 . 102 162 84 111 . . 21 . 12 . . 21 . 42 9 27 9 243 Siege Activations . | . . . . . . . . . . . . . . . . . . . . . . . . . . . . . Martial Activations . | . . . . . . . . . . . . . . . . . . . . . . . . . . . . . Shielding Activations . | . . . . . . . . . . . . . . . . . . . . . . . . . . . . . Robots Disrupted 1 | . . . . . . . . . . . . . . . . . . . . . . . . 1 . . . . Combat Hostiles 1 | . . . . . . . . . . . . . . . . . . . . . . . . 1 . . . . Robots Corrupted . | . . . . . . . . . . . . . . . . . . . . . . . . . . . . . Combat Hostiles . | . . . . . . . . . . . . . . . . . . . . . . . . . . . . . Parts Fried . | . . . . . . . . . . . . . . . . . . . . . . . . . . . . . Impact Corruptions . | . . . . . . . . . . . . . . . . . . . . . . . . . . . . . Robots Melted . | . . . . . . . . . . . . . . . . . . . . . . . . . . . . . Combat Hostiles . | . . . . . . . . . . . . . . . . . . . . . . . . . . . . . Parts Melted . | . . . . . . . . . . . . . . . . . . . . . . . . . . . . . Heat Transferred . | . . . . . . . . . . . . . . . . . . . . . . . . . . . . . Parts Sabotaged 3 | . . . . . . . . . . . . . . . . . . . . . . . . . . . . 3 Parts Stolen . | . . . . . . . . . . . . . . . . . . . . . . . . . . . . . Parts Stripped 34 | . . . . . . . . . . . . . . . . . . . . . . . . . . . 12 22 Power Chain Reactions . | . . . . . . . . . . . . . . . . . . . . . . . . . . . . . Alert | -11 -10 -10 -10 -9 -8 -8 -8 -8 -6 -6 -6 -5 -5 -5 -5 -5 -4 -4 -4 -4 -4 -4 -3 -3 -3 -2 -2 -2 ------- Run | Yrd Mat Min Exi Min Mat Sto Rec Scr Fac Was Fac Fac Ext Cet Arc Hub Fac Was Fac Upp Upp War Pro Res Tes Res Qua Frg Maximum Alert Level 4 | . 1 . . . 1 . . . 1 . . 1 1 1 . . . . 4 . . . . 2 2 1 . 3 Low Security (%) 66 | 100 63 100 . 100 95 100 100 . 88 100 100 71 67 88 100 100 100 100 16 . . . . . . 88 100 33 Level 1 14 | . 36 . . . 4 . . . 11 . . 28 32 11 . . . . 7 . . . . . 98 11 . 14 Level 2 10 | . . . . . . . . . . . . . . . . . . . 2 . . . . 100 1 . . 25 Level 3 5 | . . . . . . . . . . . . . . . . . . . 19 . . . . . . . . 26 Level 4 2 | . . . . . . . . . . . . . . . . . . . 54 . . . . . . . . . Level 5 . | . . . . . . . . . . . . . . . . . . . . . . . . . . . . . High Security . | . . . . . . . . . . . . . . . . . . . . . . . . . . . . . Max Security . | . . . . . . . . . . . . . . . . . . . . . . . . . . . . . Peak Influence 1397 | 10 246 133 . 118 270 102 165 . 260 21 121 398 382 213 97 57 39 41 1397 . . . . 531 402 220 143 788 Initial 450 | . . 73 . . 27 39 31 . . 21 . 53 169 213 47 33 23 1 . . . . . 450 296 197 93 42 Average 224 | 1 131 66 . 79 98 47 67 . 83 3 56 138 197 146 68 30 9 10 962 . . . . 467 350 177 114 403 Influence Increases 9807 | 10 432 180 . 220 480 225 194 . 675 13 321 808 383 105 70 56 59 40 1846 . . 65 60 1093 379 237 226 1630 Destroy 0b10 Robot/C 2780 | . 200 140 . 140 80 . . . 160 . 100 200 180 80 . . . 20 540 . . 20 . 140 60 20 20 680 Destroy 0b10 Robot/NC 465 | 10 15 5 . 10 25 . . . 65 . 25 15 10 5 25 . 10 . 55 . . . 15 55 30 25 15 50 Destroy Leader 422 | . 44 20 . 20 16 . . . 30 . 34 54 32 . . . . . 100 . . . . 8 4 4 4 52 Allied During Kill 465 | . . . . . . . . . . . . . 23 5 . . . 20 405 . . . . 2 . . . 10 Trap Triggered on 0b10 30 | . . . . . 30 . . . . . . . . . . . . . . . . . . . . . . . Successful Hack 563 | . 38 . . . 50 52 13 . 46 . 23 18 6 . . 24 11 . 28 . . . . 129 45 14 58 8 Select Force Hacks 270 | . 30 . . . 60 . 120 . . . . . . . . . . . 30 . . . . . . . 30 . Disable Machine 1035 | . . . . 15 15 45 . . . . . . 30 . 15 30 . . 300 . . . . . 150 . 60 375 Destroy Structure 757 | . . 15 . 35 24 8 1 . 14 13 4 26 12 . . 2 8 . 178 . . . . 54 30 69 39 225 Advance Influence 450 | . . . . . . . . . . . . . . . . . . . . . . . . 450 . . . . Partial Spotted 405 | . . . . . 30 . . . 45 . 30 15 30 . 15 . 30 . 60 . . . . 90 15 15 . 30 Lose Combat Pursuer 1965 | . 105 . . . 150 120 60 . 315 . 105 480 60 15 15 . . . 150 . . 45 45 165 45 90 . . Miscellaneous 200 | . . . . . . . . . . . . . . . . . . . . . . . . . . . . 200 Influence Decreases 9301 | 10 242 267 103 150 455 238 276 . 614 74 211 572 347 369 91 104 103 45 482 556 254 602 77 566 555 422 315 1201 Entered New Map 2702 | . . 117 103 . 43 56 51 . . 40 . 57 177 169 71 64 26 4 . 506 154 554 17 . 231 154 73 35 Time Decay 4269 | 10 232 130 . 140 302 71 225 . 304 10 181 295 140 90 20 40 77 41 222 50 100 48 55 286 214 238 222 526 Search Patrol Dispatched 500 | . . . . . 100 . . . . . . 100 . . . . . . . . . . . 200 100 . . . Lost Part 655 | . 10 . . 10 . 10 . . 160 10 30 60 10 70 . . . . . . . . 5 60 . 30 20 170 Lost Ally 494 | . . 20 . . 10 20 . . . 14 . 60 20 40 . . . . 260 . . . . 20 10 . . 20 Purge Threat 681 | . . . . . . 81 . . 150 . . . . . . . . . . . . . . . . . . 450 Squads Dispatched 92 | . 2 1 . . 4 2 . . 11 . 3 13 1 . . . 2 . 13 . . . . 9 4 12 3 12 Investigation 38 | . 1 . . . 3 2 . . 5 . 1 6 1 . . . . . 6 . . . . 5 1 3 1 3 Extermination 23 | . . . . . . . . . 2 . 2 2 . . . . . . 2 . . . . 3 2 3 2 5 Reinforcement 21 | . 1 . . . 1 . . . 4 . . 2 . . . . 2 . 2 . . . . 1 1 6 . 1 Assault 6 | . . 1 . . . . . . . . . . . . . . . . 2 . . . . . . . . 3 Garrison 4 | . . . . . . . . . . . . 3 . . . . . . 1 . . . . . . . . . Intercept . | . . . . . . . . . . . . . . . . . . . . . . . . . . . . . Searches Triggered 5 | . . . . . 1 . . . . . . 1 . . . . . . . . . . . 2 1 . . . Construction Impeded 2 | . . . . . . . . . 1 . . . . . . . . . 1 . . . . . . . . . Haulers Reinforced 1 | . . . . . . . . . . . . . . . . . . . 1 . . . . . . . . . Active Scanning Responses . | . . . . . . . . . . . . . . . . . . . . . . . . . . . . . Cargo Convoy Interrupts . | . . . . . . . . . . . . . . . . . . . . . . . . . . . . . Stealth | -11 -10 -10 -10 -9 -8 -8 -8 -8 -6 -6 -6 -5 -5 -5 -5 -5 -4 -4 -4 -4 -4 -4 -3 -3 -3 -2 -2 -2 --------- Run | Yrd Mat Min Exi Min Mat Sto Rec Scr Fac Was Fac Fac Ext Cet Arc Hub Fac Was Fac Upp Upp War Pro Res Tes Res Qua Frg Distress Signals 25 | . 2 . . . 3 1 . . 1 . . 2 2 1 . 1 . . 2 . . . 1 2 2 3 . 2 Communications Jammed 2 | . . . . . . . . . . . . . . . . . . . . . . . . . . . . 2 Distress Signals 1 | . . . . . . . . . . . . . . . . . . . . . . . . . . . . 1 Times Spotted 427 | . 25 8 . 7 26 18 4 . 37 6 11 45 18 7 5 2 6 . 40 1 . 31 7 43 8 29 4 39 Peak Tracking Total 16 | . 5 4 . 4 7 13 4 . 8 2 6 7 9 5 5 3 4 . 9 2 . 13 6 11 5 16 1 7 Tactical Retreats 69 | . 3 . . . 6 5 1 . 10 1 3 11 4 1 1 . . . 3 . . 1 1 9 2 5 1 1 ECM-based Alert Blocks 24 | . . . . . . . . . 8 . . . . . . . . . . . . . . 11 3 . 1 1 Traps | -11 -10 -10 -10 -9 -8 -8 -8 -8 -6 -6 -6 -5 -5 -5 -5 -5 -4 -4 -4 -4 -4 -4 -3 -3 -3 -2 -2 -2 ------- Run | Yrd Mat Min Exi Min Mat Sto Rec Scr Fac Was Fac Fac Ext Cet Arc Hub Fac Was Fac Upp Upp War Pro Res Tes Res Qua Frg Traps Triggered 16 | . . . . . 1 1 . . 1 . . 1 2 . . . 1 . . . . . . . . . 2 7 Indirectly . | . . . . . . . . . . . . . . . . . . . . . . . . . . . . . Trap Hack Attempts . | . . . . . . . . . . . . . . . . . . . . . . . . . . . . . Triggered . | . . . . . . . . . . . . . . . . . . . . . . . . . . . . . Disarmed . | . . . . . . . . . . . . . . . . . . . . . . . . . . . . . Reprogrammed 6 | . . . . . 6 . . . . . . . . . . . . . . . . . . . . . . . Reused 3 | . . . . . 3 . . . . . . . . . . . . . . . . . . . . . . . Traps Extracted . | . . . . . . . . . . . . . . . . . . . . . . . . . . . . . Installed . | . . . . . . . . . . . . . . . . . . . . . . . . . . . . . Triggered 3 | . . . . . 3 . . . . . . . . . . . . . . . . . . . . . . . Time Bombs Activated 2 | . . . . . . . . . . . . . . . . . . . . . . . . . . . . 2 Exploded 1 | . . . . . . . . . . . . . . . . . . . . . . . . . . . . 1 Machines | -11 -10 -10 -10 -9 -8 -8 -8 -8 -6 -6 -6 -5 -5 -5 -5 -5 -4 -4 -4 -4 -4 -4 -3 -3 -3 -2 -2 -2 ---------- Run | Yrd Mat Min Exi Min Mat Sto Rec Scr Fac Was Fac Fac Ext Cet Arc Hub Fac Was Fac Upp Upp War Pro Res Tes Res Qua Frg Machines Disabled 73 | . . . . 1 1 3 . . . . . . 3 . 1 2 . . 20 . . 1 . . 10 . 4 27 Max in Single Turn 8 | . . . . 1 1 1 . . . . . . 1 . 1 1 . . . . . 1 . . 1 . 1 8 Garrison Access 10 | . . . . . . . . . 3 . . 1 . . . . . . 2 . . . . . 1 2 1 . Network Hub 2 | . . . . . . . . . . . . . . . . 2 . . . . . . . . . . . . Energy Cycler 2 | . . . . . . . . . . . . . 2 . . . . . . . . . . . . . . . Machines Repaired . | . . . . . . . . . . . . . . . . . . . . . . . . . . . . . Machines Dismantled 4 | . . . . . . . . . . . . . 2 . . 2 . . . . . . . . . . . . Machines Sabotaged . | . . . . . . . . . . . . . . . . . . . . . . . . . . . . . Overloaded Fab Kills . | . . . . . . . . . . . . . . . . . . . . . . . . . . . . . Hacking | -11 -10 -10 -10 -9 -8 -8 -8 -8 -6 -6 -6 -5 -5 -5 -5 -5 -4 -4 -4 -4 -4 -4 -3 -3 -3 -2 -2 -2 --------- Run | Yrd Mat Min Exi Min Mat Sto Rec Scr Fac Was Fac Fac Ext Cet Arc Hub Fac Was Fac Upp Upp War Pro Res Tes Res Qua Frg Machines Accessed 158 | . 7 . 1 . 11 6 10 3 14 . 7 13 5 . . 3 6 . 18 . 1 5 1 12 9 10 8 8 Terminals 88 | . 6 . . . 8 5 6 . 6 . 5 4 4 . . 3 4 . 8 . . . 1 6 7 6 5 4 Fabricators 6 | . . . . . . . . . 1 . 1 2 . . . . 1 . 1 . . . . . . . . . Repair Stations 3 | . . . . . . 1 . . 1 . . . . . . . 1 . . . . . . . . . . . Recycling Units 28 | . 1 . . . 1 . 4 . 2 . . 5 1 . . . . . 5 . . . . 4 . 2 . 3 Scanalyzers 12 | . . . . . 2 . . . 1 . 1 1 . . . . . . 2 . . . . 2 1 . 2 . Garrison Access 11 | . . . . . . . . . 3 . . 1 . . . . . . 2 . . . . . 1 2 1 1 Total Hacks 555 | . 27 . 4 . 43 26 33 10 44 . 29 21 14 . . 21 26 . 56 . 1 9 1 46 37 46 29 32 Successful 363 | . 17 . 4 . 29 15 21 10 32 . 21 15 10 . . 12 19 . 33 . 1 9 1 20 24 28 20 22 Failed 188 | . 9 . . . 13 11 12 . 12 . 8 6 4 . . 9 7 . 22 . . . . 26 13 17 9 10 Catastrophic 16 | . . . . . 1 1 3 . . . . . . . . 1 . . 4 . . . . 5 . . 1 . Database Lockouts 4 | . 1 . . . 1 . . . . . . . . . . . . . 1 . . . . . . 1 . . Manual 330 | . 21 . . . 25 17 30 . 17 . 17 10 9 1 . 15 14 . 32 . . . . 30 20 25 23 24 Terminals 419 | . 25 . . . 28 25 29 . 29 . 19 9 13 . . 21 21 . 41 . . . 1 36 33 39 24 26 Fabricators 14 | . . . . . . . . . 2 . 3 5 . . . . 2 . 2 . . . . . . . . . Repair Stations 5 | . . . . . . 1 . . 1 . . . . . . . 3 . . . . . . . . . . . Recycling Units 32 | . 2 . . . 1 . 4 . 2 . . 5 1 . . . . . 5 . . . . 5 . 3 . 4 Scanalyzers 41 | . . . . . 14 . . . 5 . 7 1 . . . . . . 4 . . . . 5 2 . 3 . Garrison Access 20 | . . . . . . . . . 5 . . 1 . . . . . . 4 . . . . . 2 4 2 2 Terminal Hacks 143 | . 8 . 4 . 7 8 8 10 13 . 3 3 3 . . 6 8 . 9 . 1 9 1 2 11 14 5 10 Record 23 | . . . 4 . . . . 9 . . 2 . . . . . . . . . . 7 . . . . . 1 Part Schematic 9 | . . . . . 1 1 1 . 3 . . . . . . 1 . . . . . . . . 2 . . . Robot Schematic 2 | . . . . . . . 1 . 1 . . . . . . . . . . . . . . . . . . . Robot Analysis 14 | . 4 . . . . . 2 . . . . . . . . . . . 2 . . . . . . 6 . . Prototype ID Bank 22 | . 1 . . . 2 1 2 . 4 . . 1 . . . 1 2 . 1 . . . . 1 3 2 1 . Open Door 6 | . . . . . . . . 1 . . . 1 . . . . . . . . 1 2 1 . . . . . Level Access Points 2 | . . . . . . . . . . . . . . . . 1 . . . . . . . . 1 . . . Branch Access Points 4 | . . . . . . . . . . . . . . . . . 1 . 1 . . . . 1 . 1 . . Terminal Index 8 | . 1 . . . . . . . . . 1 . 1 . . 1 1 . 1 . . . . . 1 . 1 . Fabricator Index 1 | . . . . . . . . . . . . . . . . . 1 . . . . . . . . . . . Recycling Unit Index 4 | . 1 . . . . . 1 . . . . . . . . . 1 . . . . . . . . . . 1 Scanalyzer Index 1 | . . . . . . . . . . . . . . . . . . . 1 . . . . . . . . . Garrison Index 1 | . . . . . . . . . . . . . . . . . . . . . . . . . . . . 1 Alert Level 7 | . . . . . 1 1 . . 1 . . . 1 . . 1 . . . . . . . . . 2 . . Unreport Threat 7 | . . . . . . 1 . . 1 . . . . . . . . . . . . . . . . . . 5 Locate Traps 11 | . 1 . . . 1 1 . . 2 . . 1 1 . . . . . 1 . . . . . . 1 1 1 Reprogram Traps 1 | . . . . . 1 . . . . . . . . . . . . . . . . . . . . . . . Extermination Status 1 | . . . . . . . . . . . . . . . . . . . 1 . . . . . . . . . Recall Extermination 1 | . . . . . . . . . 1 . . . . . . . . . . . . . . . . . . . Hauler Manifests 1 | . . . . . . 1 . . . . . . . . . . . . . . . . . . . . . . Registered Components 1 | . . . . . . . . . . . . . . . . . . . . . . . . . 1 . . . Zone Layout 15 | . . . . . 1 2 1 . . . . . . . . 1 2 . 1 . . . . . 3 2 2 . Proto ID Catalog 1 | . . . . . . . . . . . . . . . . . . . . . . . . . . . . 1 Fabricator Hacks 8 | . . . . . . . . . 1 . 2 3 . . . . 1 . 1 . . . . . . . . . Network Status 1 | . . . . . . . . . . . . . . . . . . . 1 . . . . . . . . . Load Schematic 3 | . . . . . . . . . 1 . 1 1 . . . . . . . . . . . . . . . . Build 4 | . . . . . . . . . . . 1 2 . . . . 1 . . . . . . . . . . . Repair Station Hacks 2 | . . . . . . . . . . . . . . . . . 2 . . . . . . . . . . . Scan Component 1 | . . . . . . . . . . . . . . . . . 1 . . . . . . . . . . . Repair 1 | . . . . . . . . . . . . . . . . . 1 . . . . . . . . . . . Recycling Unit Hacks . | . . . . . . . . . . . . . . . . . . . . . . . . . . . . . Scanalyzer 33 | . . . . . 11 . . . 4 . 7 1 . . . . . . 2 . . . . 4 2 . 2 . Insert Component 9 | . . . . . 3 . . . 1 . 2 . . . . . . . . . . . . 2 . . 1 . Analyze 7 | . . . . . 3 . . . 1 . 2 . . . . . . . . . . . . 1 . . . . Retrieve Study 17 | . . . . . 5 . . . 2 . 3 1 . . . . . . 2 . . . . 1 2 . 1 . Garrison Access Hacks 11 | . . . . . . . . . 3 . . 1 . . . . . . 2 . . . . . 1 2 1 1 Unlock Access 1 | . . . . . . . . . . . . . . . . . . . . . . . . . . . . 1 Seal Access 10 | . . . . . . . . . 3 . . 1 . . . . . . 2 . . . . . 1 2 1 . Unauthorized Hacks 166 | . 9 . . . 11 7 13 . 11 . 9 7 7 . . 6 8 . 19 . . . . 14 10 12 12 11 Terminals 126 | . 7 . . . 9 6 9 . 7 . 8 . 6 . . 6 7 . 13 . . . . 10 10 10 11 7 Track 7 | . . . . . . . . . . . . . . . . 1 . . . . . . . . 4 . 1 1 Assimilate 6 | . . . . . 1 2 . . . . . . . . . . . . 2 . . . . 1 . . . . Botnet 42 | . 2 . . . 3 2 3 . 2 . 3 . 2 . . 2 3 . 4 . . . . 4 1 4 5 2 Disrupt 2 | . . . . . . . . . . . . . . . . . . . 1 . . . . . . . . 1 Operators 1 | . . . . . . . . . . . . . . . . . . . . . . . . . . . . 1 Skim 68 | . 5 . . . 5 2 6 . 5 . 5 . 4 . . 3 4 . 6 . . . . 5 5 6 5 2 Fabricators 5 | . . . . . . . . . 1 . 1 2 . . . . 1 . . . . . . . . . . . Prioritize 4 | . . . . . . . . . . . 1 2 . . . . 1 . . . . . . . . . . . Recompile 1 | . . . . . . . . . 1 . . . . . . . . . . . . . . . . . . . Repair Stations 2 | . . . . . . 1 . . 1 . . . . . . . . . . . . . . . . . . . Patch 2 | . . . . . . 1 . . 1 . . . . . . . . . . . . . . . . . . . Recycling Units 29 | . 2 . . . 1 . 4 . 2 . . 5 1 . . . . . 5 . . . . 4 . 2 . 3 Reject 1 | . 1 . . . . . . . . . . . . . . . . . . . . . . . . . . . Tunnel 6 | . 1 . . . 1 . 4 . . . . . . . . . . . . . . . . . . . . . Fedlink 22 | . . . . . . . . . 2 . . 5 1 . . . . . 5 . . . . 4 . 2 . 3 Scanalyzers 3 | . . . . . 1 . . . . . . . . . . . . . 1 . . . . . . . 1 . Extract 3 | . . . . . 1 . . . . . . . . . . . . . 1 . . . . . . . 1 . Garrison Access 1 | . . . . . . . . . . . . . . . . . . . . . . . . . . . . 1 Broadcast 1 | . . . . . . . . . . . . . . . . . . . . . . . . . . . . 1 Data Cores Recovered 6 | . . . . . 1 . . . . . . . . . . . . . . . . . . 3 . 2 . . Used 1 | . . . . . . . . . . . . . . . . . . . . . . . . 1 . . . . Hacking Detections 84 | . 7 . . . 10 5 5 . 6 . 5 5 4 . . 3 5 . 9 . . . . 6 5 5 3 1 Full Trace Events 6 | . . . . . 2 1 . . 1 . 1 1 . . . . . . . . . . . . . . . . Feedback Events . | . . . . . . . . . . . . . . . . . . . . . . . . . . . . . Feedback Blocked . | . . . . . . . . . . . . . . . . . . . . . . . . . . . . . Robot Schematics Acquired 6 | . . . . . . . 1 . 1 . . . . . . . . . . . . . . . 1 . 1 2 Robots Built 3 | . . . . . . . . . . . . 3 . . . . . . . . . . . . . . . . Authchips . | . . . . . . . . . . . . . . . . . . . . . . . . . . . . . Time 152 | . . . . . . . . . . . . 152 . . . . . . . . . . . . . . . . Total Robot Build Rating 15 | . . . . . . . . . . . . 15 . . . . . . . . . . . . . . . . Part Schematics Acquired 41 | . . . . . 10 1 1 . 4 . 2 . . . . 1 . . 8 . . . . 1 4 . 3 6 Parts Built 4 | . . . . . . . . . . . 2 1 . . . . 1 . . . . . . . . . . . Authchips 1 | . . . . . . . . . . . 1 . . . . . . . . . . . . . . . . . Time 237 | . . . . . . . . . . . 73 36 . . . . 128 . . . . . . . . . . . Total Part Build Rating 17 | . . . . . . . . . . . 6 3 . . . . 8 . . . . . . . . . . . Part Studies Acquired 17 | . . . . . 5 . . . 2 . 3 1 . . . . . . 2 . . . . 1 2 . 1 . Parts Repaired 1 | . . . . . . . . . . . . . . . . . 1 . . . . . . . . . . . Time 44 | . . . . . . . . . . . . . . . . . 44 . . . . . . . . . . . Parts Recycled . | . . . . . . . . . . . . . . . . . . . . . . . . . . . . . Recycled Matter . | . . . . . . . . . . . . . . . . . . . . . . . . . . . . . Retrieved Matter . | . . . . . . . . . . . . . . . . . . . . . . . . . . . . . Retrieved Components . | . . . . . . . . . . . . . . . . . . . . . . . . . . . . . Parts Scanalyzed 7 | . . . . . 3 . . . 1 . 2 . . . . . . . . . . . . 1 . . . . Part Schematics Acquired 7 | . . . . . 3 . . . 1 . 2 . . . . . . . . . . . . 1 . . . . Parts Damaged . | . . . . . . . . . . . . . . . . . . . . . . . . . . . . . Bothacking | -11 -10 -10 -10 -9 -8 -8 -8 -8 -6 -6 -6 -5 -5 -5 -5 -5 -4 -4 -4 -4 -4 -4 -3 -3 -3 -2 -2 -2 ------------ Run | Yrd Mat Min Exi Min Mat Sto Rec Scr Fac Was Fac Fac Ext Cet Arc Hub Fac Was Fac Upp Upp War Pro Res Tes Res Qua Frg Used RIF Installer . | . . . . . . . . . . . . . . . . . . . . . . . . . . . . . Robots Hacked 1 | . . . . . . . . . 1 . . . . . . . . . . . . . . . . . . . Non-combat 1 | . . . . . . . . . 1 . . . . . . . . . . . . . . . . . . . Combat . | . . . . . . . . . . . . . . . . . . . . . . . . . . . . . Robot Hacks Applied 1 | . . . . . . . . . 1 . . . . . . . . . . . . . . . . . . . find_chute 1 | . . . . . . . . . 1 . . . . . . . . . . . . . . . . . . . Relay Couplers Released . | . . . . . . . . . . . . . . . . . . . . . . . . . . . . . Fabnet Peak Effective % . | . . . . . . . . . . . . . . . . . . . . . . . . . . . . . Robots Rewired 1 | . . . . . . . . . . . . . . . . . . . . . . . . 1 . . . . Allies Hacked . | . . . . . . . . . . . . . . . . . . . . . . . . . . . . . Hacks Repelled . | . . . . . . . . . . . . . . . . . . . . . . . . . . . . . Allies | -11 -10 -10 -10 -9 -8 -8 -8 -8 -6 -6 -6 -5 -5 -5 -5 -5 -4 -4 -4 -4 -4 -4 -3 -3 -3 -2 -2 -2 -------- Run | Yrd Mat Min Exi Min Mat Sto Rec Scr Fac Was Fac Fac Ext Cet Arc Hub Fac Was Fac Upp Upp War Pro Res Tes Res Qua Frg Total Allies 53 | . . 1 . . 1 2 . . . 20 . 3 2 1 . . . 20 1 . . . . 2 . . . . Largest Group 20 | . . 1 . . 1 1 . . . 20 . 3 2 1 . . . 20 20 . . . . 1 1 . . . Highest-Rated Group 839 | . . 31 . . 10 26 . . . 733 . 87 179 149 . . . 839 839 . . . . 45 45 . . . Highest-Rated Ally 159 | . . 31 . . 10 26 . . . 50 . 29 159 149 . . . 50 50 . . . . 45 45 . . . Initial UFD Resources 122 | . . . . . . . . . 23 37 37 41 61 63 63 63 66 66 66 86 86 86 88 88 106 108 122 122 Total Orders 2 | . . . . . . . . . . . . . . . . . . . . . . . . . . . . 2 RETURN 2 | . . . . . . . . . . . . . . . . . . . . . . . . . . . . 2 Ally Attacks 279 | . . 5 . . . . . . . 91 . 12 16 7 . . . . 130 . . . . 3 . . . 15 Total Damage 11273 | . . 85 . . . . . . . 4013 . 209 585 269 . . . . 5427 . . . . 34 . . . 651 Kills 55 | . . . . . . . . . . 11 . . 7 1 . . . . 32 . . . . 1 . . . 3 Allies Corrupted 1 | . . . . . . . . . . . . . . . . . . . 1 . . . . . . . . . Allies Melted 1 | . . . . . . . . . . . . . . . . . . . . . . 1 . . . . . . Intel | -11 -10 -10 -10 -9 -8 -8 -8 -8 -6 -6 -6 -5 -5 -5 -5 -5 -4 -4 -4 -4 -4 -4 -3 -3 -3 -2 -2 -2 ------- Run | Yrd Mat Min Exi Min Mat Sto Rec Scr Fac Was Fac Fac Ext Cet Arc Hub Fac Was Fac Upp Upp War Pro Res Tes Res Qua Frg Active Infowar (turns) 9230 | 3 608 265 47 287 696 165 5 48 698 120 443 66 . 71 50 86 290 143 460 104 205 744 204 631 450 505 461 1375 Optics 3068 | . 465 265 47 287 696 165 5 48 302 120 443 66 . 71 50 38 . . . . . . . . . . . . Sensors 5007 | . . . . . 677 165 3 . . . . . . . . 61 290 143 460 104 205 744 204 438 107 505 361 540 IFF 47 | . . . . . . . . . 47 . . . . . . . . . . . . . . . . . . . Terrain 128 | . . . . . . . . . . . . . . . . . 128 . . . . . . . . . . . Structural 3779 | . . . . . . . . . 109 120 138 63 . . . . . . 370 102 205 209 201 609 450 488 461 254 Seismic 1467 | 3 608 56 . . . . . . 468 86 . . . . . 48 198 . . . . . . . . . . . Cloaking 2967 | . . . . . . . . . . . . . . . . . . . . . . 364 . 426 450 467 434 826 Jamming 2255 | . . . . . . . . . . . . . . . . . . . . . . . . 23 . 467 441 1324 ECM 498 | . . . . . . . . . 216 34 30 . . . . . . . . . . . . 60 75 17 20 46 Robot Analysis Total 12 | . 4 . . . . . 2 . . . . . . . . . . . 1 . . . . . . 5 . . Derelict Logs Recovered 7 | . . 1 . 3 . . . . . . . . . . . . . . . 1 2 . . . . . . . Drone Launches 6 | . . . . . . . . . . . . . . . . . . . . . . . . . . . . 6 Drone Recoveries 5 | . . . . . . . . . . . . . . . . . . . . . . . . . . . . 5 Exploration | -11 -10 -10 -10 -9 -8 -8 -8 -8 -6 -6 -6 -5 -5 -5 -5 -5 -4 -4 -4 -4 -4 -4 -3 -3 -3 -2 -2 -2 ------------- Run | Yrd Mat Min Exi Min Mat Sto Rec Scr Fac Was Fac Fac Ext Cet Arc Hub Fac Was Fac Upp Upp War Pro Res Tes Res Qua Frg Turns Passed 11439 | 46 608 265 47 287 696 165 596 328 753 120 443 670 296 180 50 86 290 143 460 104 205 744 204 631 450 505 461 1606 Spaces Moved 20396 | 42 682 524 126 664 938 370 413 1180 1380 220 832 1322 418 213 63 158 537 140 1205 302 480 1162 325 1167 1103 1460 934 2036 Core 300 | 42 258 . . . . . . . . . . . . . . . . . . . . . . . . . . . Treads . | . . . . . . . . . . . . . . . . . . . . . . . . . . . . . Legs . | . . . . . . . . . . . . . . . . . . . . . . . . . . . . . Wheels . | . . . . . . . . . . . . . . . . . . . . . . . . . . . . . Hover . | . . . . . . . . . . . . . . . . . . . . . . . . . . . . . Flight 20096 | . 424 524 126 664 938 370 413 1180 1380 220 832 1322 418 213 63 158 537 140 1205 302 480 1162 325 1167 1103 1460 934 2036 Fastest Speed 21 | 50 37 37 37 37 27 26 26 26 23 28 21 26 27 25 27 27 26 26 26 28 28 27 27 24 27 24 24 21 Average Speed 27 | 50 42 37 37 37 28 26 26 26 26 28 23 30 29 27 27 27 26 26 27 28 28 27 27 24 27 24 24 26 Slowest Speed 150 | 50 120 37 37 37 110 27 26 26 98 28 106 109 109 105 27 27 27 26 28 28 28 28 27 28 27 24 24 150 Overloaded Moves . | . . . . . . . . . . . . . . . . . . . . . . . . . . . . . Propulsion Burnouts . | . . . . . . . . . . . . . . . . . . . . . . . . . . . . . Robots Hopped 105 | . 1 4 . 3 8 3 4 . 8 1 3 28 2 4 . 1 . . 4 . . 1 . 11 3 9 5 2 Potential Cave-ins 2 | . . . . . . . . . . . . . . . . . . . . . . . . . . . . 2 Cave-ins Triggered . | . . . . . . . . . . . . . . . . . . . . . . . . . . . . . Teleports 2 | . . . . . . . . . . . . . . . . . . . . . . . . . . . 1 1 Exploration Rate (%) 62 | 3 97 99 52 98 71 86 72 88 42 90 30 41 58 62 79 23 10 82 37 59 80 92 31 39 90 49 86 59 Regions Visited 28 Branch Regions 17 Pre-discovered Areas 18 | . 1 1 1 . 4 . 5 1 1 . . . . . . . . . . . 1 . . 1 1 1 . . Known Exits Taken 17 | . 1 . . . 1 1 1 1 . . 1 . 1 . . 1 . . 1 1 1 1 1 1 1 1 1 . Unknown Exits Taken 7 | 1 . 1 1 1 . . . . . . . 1 . 1 1 . . . . . . . . . . . . . Scrap Searched 17 | . . 1 . 2 . . . 6 . . . . . . . . . . . 3 4 . 1 . . . . . Spaces Dug 198 | . . . . 3 22 8 1 . 14 . 4 13 . . . 1 4 . 10 . 3 . . 27 13 23 13 39 Terrain Destroyed 276 | . . 18 . 54 24 8 1 . 14 . 4 13 . . . 1 4 . 10 . 3 . . 27 17 23 13 42 Melee 165 | . . . . 3 22 8 1 . 14 . 4 13 . . . 1 4 . 10 . 3 . . 27 12 23 13 7 Projectile 32 | . . . . . . . . . . . . . . . . . . . . . . . . . . . . 32 AOE 71 | . . 18 . 51 2 . . . . . . . . . . . . . . . . . . . . . . . Terrain Rammed . | . . . . . . . . . . . . . . . . . . . . . . . . . . . . . Walls Destroyed . | . . . . . . . . . . . . . . . . . . . . . . . . . . . . . Machines Disabled . | . . . . . . . . . . . . . . . . . . . . . . . . . . . . . Actions | -11 -10 -10 -10 -9 -8 -8 -8 -8 -6 -6 -6 -5 -5 -5 -5 -5 -4 -4 -4 -4 -4 -4 -3 -3 -3 -2 -2 -2 --------- Run | Yrd Mat Min Exi Min Mat Sto Rec Scr Fac Was Fac Fac Ext Cet Arc Hub Fac Was Fac Upp Upp War Pro Res Tes Res Qua Frg Total 25033 | 54 929 572 125 687 1319 421 895 1203 1640 276 1004 1477 548 307 79 193 665 244 1289 320 545 1572 425 1403 1191 1550 1126 2974 Wait 3331 | . 177 31 . 7 323 29 483 7 158 54 79 68 66 77 1 22 102 102 31 16 60 394 85 135 18 44 121 641 Move 20165 | 41 679 515 125 657 921 363 404 1179 1365 217 825 1269 413 204 62 155 537 139 1196 301 479 1159 324 1144 1096 1442 924 2030 Hop 98 | . 1 4 . 3 8 3 4 . 7 1 3 24 2 4 . 1 . . 4 . . 1 . 11 3 8 4 2 Pick Up 96 | 2 5 2 . 1 8 2 . 6 3 1 7 4 3 . 1 . . . 6 . 1 2 1 8 7 1 5 20 Fast Attach 115 | 5 4 1 . . 5 1 . 1 18 1 10 8 5 3 2 2 8 1 2 1 1 1 . 5 2 3 6 19 Attach 82 | . 1 . . 1 5 2 1 1 6 1 3 6 2 3 . 2 . . . . . 1 1 8 2 2 7 27 Detach 40 | . . 1 . . 1 . . . 1 . 2 2 1 1 1 2 . . 1 . . . . 3 2 . 2 20 Swap 103 | 1 6 4 . 6 6 3 1 1 1 . 6 2 2 . . . 3 . 4 1 . 5 3 11 4 9 8 16 Drop 145 | . 9 3 . 2 7 4 1 8 6 1 13 7 4 1 . 2 4 1 10 1 1 2 . 8 11 4 9 26 Fire 100 | 5 46 11 . 5 2 . . . . . . . . . . . . . . . . 1 . . 3 . . 27 Melee 639 | . . . . 5 33 14 1 . 75 . 56 87 18 14 12 1 11 1 35 . 3 4 11 70 43 37 25 83 Ram 1 | . 1 . . . . . . . . . . . . . . . . . . . . . . . . . . . Kick . | . . . . . . . . . . . . . . . . . . . . . . . . . . . . . Crush . | . . . . . . . . . . . . . . . . . . . . . . . . . . . . . Escape Stasis 95 | . . . . . . . . . . . . . 20 . . . . . . . . . . . . . 15 60 Rewire 2 | . . . . . . . . . . . . . . . . . . . . . . 2 . . . . . . Trap 3 | . . . . . . . . . . . . . . . . . . . . . . . . . . . . 3 Miscellaneous 18 | . . . . . . . . . . . . . 12 . . 6 . . . . . . . . . . . . Route ------- -11/Scrapyard -10/Materials (discovered 5 exits: [*Mat x3] / *Min / Sub) -10/Mines (discovered 4 exits: [*Mat x2] / *Exi / *Sub) -10/Exiles (discovered 2 exits: [*Min x2]) -9/Mines (discovered 2 exits: *Mat x2) -8/Materials (discovered 5 exits: *Fac x3 / *Sto x2) -8/Storage (discovered 2 exits: *Fac / *Rec) -8/Recycling (discovered 2 exits: *Fac / *Scr) -8/Scraptown (discovered 2 exits: *Fac x2) -6/Factory (discovered 6 exits: *Fac x4 / *Low x2) -6/Waste -6/Factory (discovered 2 exits: *Fac / Low) -5/Factory (discovered 2 exits: *Fac / *Ext) -5/Extension (discovered 3 exits: *Fac x2 / *Cet) -5/Cetus -5/Archives (discovered 2 exits: *Hub x2) -5/Hub_04(d) (discovered 4 exits: *Fac x4) -4/Factory (discovered 2 exits: *Upp x2) -4/Waste -4/Factory (discovered 2 exits: *Upp x2) -4/Upper Caves -4/Upper Caves -4/Warlord -3/Proximity Caves -3/Research (discovered 6 exits: *Res x3 / Arm / *Tes x2) -3/Testing -2/Research (discovered 5 exits: Acc x3 / *Qua x2) -2/Quarantine (discovered 3 exits: *Acc / *Sec / *Frg) -2/Protoforge (discovered 1 exit: Gar) History --------- Turn | Location | Event 14 | -11/Scrapyard | Discovered new exit (range 14) 47 | -11/Scrapyard | Entered Materials 191 | -10/Materials | Discovered new exit (range 17) 340 | -10/Materials | Learned Recycling recycling unit intel 340 | -10/Materials | Discovered new exit (range 12) 343 | -10/Materials | Central database locked down 363 | -10/Materials | Discovered new exit (range 18) 405 | -10/Materials | Learned location of 1 exit from Recycling 460 | -10/Materials | Loaded intel: 9 trap records 492 | -10/Materials | Discovered new exit (range 13) 504 | -10/Materials | Learned 4 Recycling zone layouts 537 | -10/Materials | Loaded intel: 7 terminal locations 579 | -10/Materials | Identified exit to Mines 633 | -10/Materials | Identified exit to Subcaves 655 | -10/Materials | Entered Mines 734 | -10/Mines | Build established: Scavenger-Mutant 768 | -10/Mines | Discovered new exit (range 9) 781 | -10/Mines | Core integrity fell below 50% 799 | -10/Mines | Learned Materials emergency access door positions 800 | -10/Mines | Met a Derelict testing a Signal Generator 830 | -10/Mines | Discovered exit to Subcaves (range 16) 888 | -10/Mines | Deemed a non-threat by the Exiles lab entrance 888 | -10/Mines | Discovered new exit (range 5) 897 | -10/Mines | Discovered new exit (range 6) 899 | -10/Mines | Learned location of Storage (-8) 920 | -10/Mines | Entered Exiles 925 | -10/Exiles | Discovered new exit (range 16) 929 | -10/Exiles | Met 8R-AWN 936 | -10/Exiles | Met EX-HEX 946 | -10/Exiles | Met EX-BIN 950 | -10/Exiles | Met EX-DEC 952 | -10/Exiles | Learned location of Zion (-6) 963 | -10/Exiles | Discovered new exit (range 12) 967 | -10/Exiles | Entered Mines 980 | -9/Mines | Discovered new exit (range 13) 993 | -9/Mines | Met a Derelict bent on vengeance 1017 | -9/Mines | Received a Rocket Launcher from a helpful Derelict 1030 | -9/Mines | A weapon hastily lodged in a ceiling crevice suddenly fell to the ground 1083 | -9/Mines | Learned 2 Materials zone layouts 1084 | -9/Mines | Discovered new exit (range 5) 1205 | -9/Mines | Learned Materials terminal intel 1218 | -9/Mines | Found a Scrap Suit stashed away for nefarious purposes 1254 | -9/Mines | Entered Materials 1254 | -8/Materials | Evolved 4 slots: Propulsion x2, Utility x2 1255 | -8/Materials | Identified exit to Factory 1256 | -8/Materials | Identified exit to Storage 1258 | -8/Materials | Loaded intel: 11 terminal locations 1596 | -8/Materials | Central database locked down 1654 | -8/Materials | Search patrols dispatched 1685 | -8/Materials | Learned location of Lower Caves (-7) 1763 | -8/Materials | Build established: Scientist-Scout 1765 | -8/Materials | Learned location of Lower Caves (-7) 1822 | -8/Materials | Learned location of 3 exits from Factory 1840 | -8/Materials | Learned location of 1 exit from Recycling 1868 | -8/Materials | Learned 2 Storage zone layouts 1950 | -8/Materials | Entered Storage 1951 | -8/Storage | Identified exit to Recycling 2042 | -8/Storage | Discovered exit to Factory (range 5) 2111 | -8/Storage | Used back door to open Recycling access 2115 | -8/Storage | Entered Recycling 2116 | -8/Recycling | Identified exit to Scraptown 2116 | -8/Recycling | Identified exit to Factory 2118 | -8/Recycling | Loaded intel: 5 recycling unit locations 2226 | -8/Recycling | Scanned before Scraplab entrance 2230 | -8/Recycling | Entered Scraplab 2265 | -8/Recycling | Learned Storage stockpile data 2337 | -8/Recycling | Learned Storage trap positions 2400 | -8/Recycling | Learned Storage emergency access door positions 2407 | -8/Recycling | Build established: Hacker-Sprinter 2453 | -8/Recycling | Learned 4 Recycling zone layouts 2526 | -8/Recycling | Learned 4 Factory zone layouts 2569 | -8/Recycling | Learned location of 1 exit from Extension 2621 | -8/Recycling | Learned 8 Factory zone layouts 2685 | -8/Recycling | Learned Storage emergency access door positions 2711 | -8/Recycling | Entered Scraptown 2782 | -8/Scraptown | Discovered exit to Factory (range 11) 2799 | -8/Scraptown | Visited The Evicted 2804 | -8/Scraptown | Visited Assassins FH 2843 | -8/Scraptown | Visited UFD Registry 2843 | -8/Scraptown | Registered with UFD as "Powertorch" 2847 | -8/Scraptown | Visited Fellowship of the Rings 2854 | -8/Scraptown | Visited Awakened 2864 | -8/Scraptown | Visited Shadow of the Wyrm 2866 | -8/Scraptown | Visited Cyclists 2868 | -8/Scraptown | Entered Cyclist Reading Room 2873 | -8/Scraptown | Visited CR-KLE's Repair Center 2883 | -8/Scraptown | Visited Abandonware Association 2886 | -8/Scraptown | Learned abandonware demo "MELTYB.EXE" 2892 | -8/Scraptown | Visited LU-1G1's Boring Crew 2900 | -8/Scraptown | Visited A0-MCA Data Center 2922 | -8/Scraptown | Visited Sword Containment 2926 | -8/Scraptown | Found Prototype Slashing Weapon 2926 | -8/Scraptown | Identified Companion Sword 2934 | -8/Scraptown | Given a B- rating by A0-MCA 2937 | -8/Scraptown | Found A0-MCA's Component Scanner 2943 | -8/Scraptown | Visited Derelict Rescue Squad 2948 | -8/Scraptown | Visited Modified Component R&D 2958 | -8/Scraptown | Visited Chapter 10 2963 | -8/Scraptown | Visited Scrap Suit Storage 2967 | -8/Scraptown | Visited Supply Room 2992 | -8/Scraptown | CR-KLE repaired 3 parts 3020 | -8/Scraptown | Found DRS Beacon 3039 | -8/Scraptown | Discovered exit to Factory (range 3) 3039 | -8/Scraptown | Entered Factory 3039 | -6/Factory | Evolved 4 slots: Propulsion x2, Utility x2 3040 | -6/Factory | Identified exit to Lower Caves 3041 | -6/Factory | Identified exit to Factory 3103 | -6/Factory | Loaded intel: 8 recycling unit locations 3187 | -6/Factory | Lost 7 parts (1p4n2u) 3287 | -6/Factory | Watched by a mysterious "MATRIX" hacker. 3419 | -6/Factory | Core integrity fell below 50% 3540 | -6/Factory | Lost 10 parts (1p7n2u) 3715 | -6/Factory | Learned location of Warlord (-4) 3752 | -6/Factory | Learned 4 Lower Caves zone layouts 3792 | -6/Factory | Sucked down chute 3792 | -6/Factory | Entered Waste 3793 | -6/Waste | Met a frightened Derelict 3800 | -6/Waste | Spotted C-40 Crusher 3804 | -6/Waste | Spotted C-40 Crusher 3805 | -6/Waste | Spotted C-40 Crusher 3809 | -6/Waste | Warlord forces began an assault 3827 | -6/Waste | Allies destroyed C-40 Crusher 3831 | -6/Waste | Allies destroyed C-40 Crusher 3845 | -6/Waste | Spotted C-40 Crusher 3861 | -6/Waste | Lost 11 allies 3862 | -6/Waste | Allies destroyed C-40 Crusher 3870 | -6/Waste | Spotted C-40 Crusher 3887 | -6/Waste | Spotted C-40 Crusher 3893 | -6/Waste | Discovered new exit (range 11) 3907 | -6/Waste | Lost 4 allies 3912 | -6/Waste | Entered Factory 3980 | -6/Factory | Fabricated Cesium-ion Thruster (x2) 4149 | -6/Factory | Core integrity fell below 20% 4350 | -6/Factory | Discovered exit to Factory (range 22) 4355 | -6/Factory | Entered another Factory area 4355 | -5/Factory | Evolved 2 slots: Power x1, Utility x1 4357 | -5/Factory | Loaded intel: 8 recycling unit locations 4449 | -5/Factory | Fabricated Hvy. Armor Plating (x1) 4503 | -5/Factory | Garrison activated, responded to threat 4555 | -5/Factory | Lost 3 parts (1p1n1u) 4641 | -5/Factory | Spotted B-75 Beast 4672 | -5/Factory | Fabricated G-50 Soldier? 4758 | -5/Factory | Discovered new exit (range 9) 4955 | -5/Factory | Search patrols dispatched 4983 | -5/Factory | Discovered new exit (range 6) 5025 | -5/Factory | Entered Extension 5026 | -5/Extension | Identified exit to Cetus 5092 | -5/Extension | Loaded intel: 1 recycling unit location 5156 | -5/Extension | Energy Cycler disabled 5156 | -5/Extension | Rescued a captive Derelict 5156 | -5/Extension | Rescued a captive Derelict 5163 | -5/Extension | Rescued a captive Derelict 5172 | -5/Extension | Rescued a captive Derelict 5193 | -5/Extension | Rescued A7 5213 | -5/Extension | Spotted B-75 Beast 5215 | -5/Extension | Spotted B-75 Beast 5232 | -5/Extension | Discovered new exit (range 16) 5295 | -5/Extension | Discovered new exit (range 16) 5321 | -5/Extension | Entered Cetus 5321 | -5/Cetus | Accompanied by 1 ally (A7) 5326 | -5/Cetus | Acquired a Cetus Manufacturing Module code from A7 5335 | -5/Cetus | Spotted Cetus Guard 5336 | -5/Cetus | Spotted Cetus Guard 5336 | -5/Cetus | Spotted Cetus Guard 5336 | -5/Cetus | Spotted Cetus Guard 5350 | -5/Cetus | Discovered new exit (range 16) 5417 | -5/Cetus | Started Cetus Manufacturing Module 5425 | -5/Cetus | Extracted ID and sensor layout for unrecognized location from A7's data core 5442 | -5/Cetus | Manufactured an Enhanced Grunt 5443 | -5/Cetus | Lost 3 parts (1p1n1u) 5451 | -5/Cetus | Cetus Manufacturing Module disabled 5454 | -5/Cetus | Allies destroyed Cetus Guard 5463 | -5/Cetus | Destroyed Cetus Guard 5472 | -5/Cetus | Destroyed Cetus Guard 5484 | -5/Cetus | Destroyed Cetus Guard 5500 | -5/Cetus | Lost 3 parts (2n1u) 5501 | -5/Cetus | Entered Archives 5509 | -5/Archives | Core integrity fell below 50% 5517 | -5/Archives | Met Zhirov 5523 | -5/Archives | Reinforcements dispatched to Archives 5524 | -5/Archives | Discovered new exit (range 15) 5534 | -5/Archives | Discovered new exit (range 17) 5551 | -5/Archives | Entered Hub_04(d) 5601 | -5/Hub_04(d) | Network Hub disabled 5616 | -5/Hub_04(d) | Identified exit to Factory 5627 | -5/Hub_04(d) | Network Hub disabled 5637 | -5/Hub_04(d) | Entered Factory 5637 | -4/Factory | Evolved 2 slots: Utility x2 5641 | -4/Factory | Identified exit to Upper Caves 5743 | -4/Factory | Fabricated Impulse Thruster Array (x1) 5818 | -4/Factory | Found Exp. System Shield 5824 | -4/Factory | Found Exp. Signal Interpreter 5890 | -4/Factory | Repaired Enh. Fission Core 5927 | -4/Factory | Manually triggered Chute Trap 5927 | -4/Factory | Sucked down chute 5927 | -4/Factory | Entered Waste 5928 | -4/Waste | Joined by Warlord forces that had cleared the area 6014 | -4/Waste | Discovered new exit (range 12) 6021 | -4/Waste | Identified exit to Factory 6070 | -4/Waste | Entered Factory 6070 | -4/Factory | Accompanied by 20 allies 6074 | -4/Factory | Loaded intel: 8 recycling unit locations 6136 | -4/Factory | Lost 5 allies 6182 | -4/Factory | Garrison activated, responded to threat 6224 | -4/Factory | Lost 6 allies 6233 | -4/Factory | Targeted by mysterious "MATRIX" hacker. 6297 | -4/Factory | Spotted B-86 Titan 6320 | -4/Factory | First assault squad dispatched 6453 | -4/Factory | Build established: Hacker-Scout 6502 | -4/Factory | Central database locked down 6530 | -4/Factory | Entered Upper Caves 6588 | -4/Upper Caves | Encountered a Warlord checkpoint 6598 | -4/Upper Caves | Identified exit to Upper Caves 6634 | -4/Upper Caves | Entered another Upper Caves area 6726 | -4/Upper Caves | Learned 4 Research zone layouts 6807 | -4/Upper Caves | Discovered new exit (range 13) 6833 | -4/Upper Caves | Identified exit to Warlord 6839 | -4/Upper Caves | Entered Warlord 6849 | -4/Warlord | System corruption cleaned by Quarantine Array 6974 | -4/Warlord | Learned Armory emergency access door positions 6975 | -4/Warlord | Learned Factory garrison access intel 6975 | -4/Warlord | Learned Armory terminal intel 6975 | -4/Warlord | Learned Research fabricator intel 6975 | -4/Warlord | Learned 4 Armory zone layouts 6975 | -4/Warlord | Learned 4 Research zone layouts 6975 | -4/Warlord | Learned 4 Quarantine zone layouts 6989 | -4/Warlord | Warlord's base attacked by MAIN.C 7000 | -4/Warlord | Found Vortex Rail 7013 | -4/Warlord | Found Exp. Cloaking Device 7017 | -4/Warlord | Found Ghost Barrier 7047 | -4/Warlord | Opened side exit 7339 | -4/Warlord | Build established: Hacker-Sprinter 7339 | -4/Warlord | Warlord forces counterattacked 7451 | -4/Warlord | Spotted Striker 7504 | -4/Warlord | Spotted Executioner 7549 | -4/Warlord | Lost 9 allies 7577 | -4/Warlord | Spotted Striker 7581 | -4/Warlord | Discovered new exit (range 8) 7582 | -4/Warlord | Identified exit to Proximity Caves 7583 | -4/Warlord | Entered Proximity Caves 7589 | -3/Proximity Caves | Spotter reported a threat 7606 | -3/Proximity Caves | Encountered a Derelict sapper outpost 7642 | -3/Proximity Caves | Spotter reported a threat 7650 | -3/Proximity Caves | Snuck into a huge 0b10 base via the rear entrance 7709 | -3/Proximity Caves | Spotter reported a threat 7782 | -3/Proximity Caves | Discovered new exit (range 5) 7787 | -3/Proximity Caves | Identified exit to Research 7787 | -3/Proximity Caves | Entered Research 7787 | -3/Research | Evolved 2 slots: Propulsion x1, Utility x1 7788 | -3/Research | Forged Quantum Companion 7789 | -3/Research | Loaded intel: 4 fabricator locations 7808 | -3/Research | Discovered new exit (range 11) 7820 | -3/Research | Identified exit to Testing 7980 | -3/Research | Spotted B-86 Titan 8037 | -3/Research | Search patrols dispatched 8060 | -3/Research | Loaded intel: 5 recycling unit locations 8105 | -3/Research | Identified exit to Armory 8164 | -3/Research | Learned 8 Access zone layouts 8213 | -3/Research | Identified exit to Research 8275 | -3/Research | Learned Testing scanalyzer intel 8283 | -3/Research | Lost 5 parts (1p1n2u1w) 8287 | -3/Research | Search patrols dispatched 8289 | -3/Research | Spotted B-86 Titan 8290 | -3/Research | Learned Testing terminal intel 8308 | -3/Research | Learned Quarantine machine intel 8418 | -3/Research | Entered Testing 8418 | -3/Testing | Accompanied by 1 ally 8420 | -3/Testing | Loaded intel: 11 terminal locations 8421 | -3/Testing | Loaded intel: 3 scanalyzer locations 8430 | -3/Testing | Found System Mapper 8494 | -3/Testing | Spotted Striker 8494 | -3/Testing | Spotted Striker 8537 | -3/Testing | Found Z-bomb Delivery System 8567 | -3/Testing | Learned location of 1 exit from Research 8571 | -3/Testing | Found Perforator 8603 | -3/Testing | Learned Access recycling unit intel 8631 | -3/Testing | Learned 12 Research zone layouts 8648 | -3/Testing | Learned Research trap positions 8654 | -3/Testing | Learned location of Armory (-3) 8655 | -3/Testing | Learned Research fabricator intel 8656 | -3/Testing | Learned Research security intel 8657 | -3/Testing | Learned Research emergency access door positions 8668 | -3/Testing | Search patrols dispatched 8685 | -3/Testing | Learned Access stockpile data 8715 | -3/Testing | Loaded intel: 93 machine locations 8868 | -3/Testing | Entered Research 8868 | -2/Research | Evolved 2 slots: Power x1, Propulsion x1 8869 | -2/Research | Identified exit to Access 8870 | -2/Research | Identified exit to Quarantine 8871 | -2/Research | Loaded intel: 49 trap records 8874 | -2/Research | Loaded intel: 4 fabricator locations 8925 | -2/Research | Found Exp. Hacking Suite 9051 | -2/Research | Build established: Hacker-Ninja 9052 | -2/Research | Central database locked down 9078 | -2/Research | Spotted B-90 Cyclops 9078 | -2/Research | Loaded intel: 5 recycling unit locations 9217 | -2/Research | Learned 4 Research zone layouts 9302 | -2/Research | Spotted B-90 Cyclops 9365 | -2/Research | Spotted B-90 Cyclops 9373 | -2/Research | Entered Quarantine 9374 | -2/Quarantine | Identified exit to Section 7 9374 | -2/Quarantine | Identified exit to Protoforge 9375 | -2/Quarantine | Loaded intel: 66 machine locations 9397 | -2/Quarantine | Found Alien Energy Cannon 9404 | -2/Quarantine | Lost 3 parts (1p2u) 9486 | -2/Quarantine | Cryocooling Duct disabled 9501 | -2/Quarantine | Ambient heat levels rising (+20) 9501 | -2/Quarantine | Non-combat units ordered to evacuate 9536 | -2/Quarantine | Discovered exit to Access (range 19) 9589 | -2/Quarantine | Found Alien Artifact 9589 | -2/Quarantine | Identified Dimensional Node Initializer 9589 | -2/Quarantine | Initialized slip node 9593 | -2/Quarantine | Found Dimensional Node Initializer 9595 | -2/Quarantine | Identified Core Cannon 9601 | -2/Quarantine | Found Alien Artifact 9601 | -2/Quarantine | Identified Transdimensional Reconstructor 9601 | -2/Quarantine | Warped through subspace to slip node 9608 | -2/Quarantine | Found Transdimensional Reconstructor 9655 | -2/Quarantine | Found Alien Artifact 9656 | -2/Quarantine | Identified Subatomic Replicator 9656 | -2/Quarantine | Used Subatomic Replicator to create Alien Artifact 9674 | -2/Quarantine | Learned Access stockpile data 9696 | -2/Quarantine | Identified Supercharged TR 9712 | -2/Quarantine | Learned Research stockpile data 9742 | -2/Quarantine | Learned 4 Access zone layouts 9763 | -2/Quarantine | Learned 4 Research zone layouts 9773 | -2/Quarantine | Learned Research fabricator intel 9774 | -2/Quarantine | Learned Research terminal intel 9784 | -2/Quarantine | Learned location of 1 exit from Research 9803 | -2/Quarantine | Learned 4 Access zone layouts 9811 | -2/Quarantine | Spotted Fortress 9833 | -2/Quarantine | Learned Access recycling unit intel 9834 | -2/Quarantine | Entered Protoforge 10060 | -2/Protoforge | Spotted Hotshot 10060 | -2/Protoforge | Spotted Hotshot 10060 | -2/Protoforge | Spotted Hotshot 10061 | -2/Protoforge | Spotted Hotshot 10064 | -2/Protoforge | Spotted EXE-6 10064 | -2/Protoforge | Spotted EXE-6 10067 | -2/Protoforge | Spotted Decapitator 10068 | -2/Protoforge | Spotted Decapitator 10071 | -2/Protoforge | Destroyed Decapitator 10071 | -2/Protoforge | Destroyed Decapitator 10079 | -2/Protoforge | Found Prototype Launcher 10079 | -2/Protoforge | Identified Cep. Concussive Dispersal Blaster 10088 | -2/Protoforge | Initialized slip node 10090 | -2/Protoforge | Loaded intel: 3 recycling unit locations 10134 | -2/Protoforge | Spotted EXE-6 10134 | -2/Protoforge | Spotted EXE-6 10161 | -2/Protoforge | Lost 3 parts (1p2n) 10256 | -2/Protoforge | Found Prototype Storage 10256 | -2/Protoforge | Identified Cep. Chromion Battery 10416 | -2/Protoforge | Identified exit to Garrison 10426 | -2/Protoforge | Found Exp. System Purifier 10429 | -2/Protoforge | Found Prototype Device 10429 | -2/Protoforge | Identified Crosscalibrator 10460 | -2/Protoforge | Spotted Immortal 10461 | -2/Protoforge | Spotted Decapitator 10461 | -2/Protoforge | Spotted Decapitator 10461 | -2/Protoforge | Spotted Decapitator 10474 | -2/Protoforge | Found Faulty Cep. Projectile Intercept Suite 10476 | -2/Protoforge | Found Cep. Projectile Intercept Suite 10481 | -2/Protoforge | Found Cep. RG22 Armor 10484 | -2/Protoforge | Found Faulty Cep. RG22 Armor 10600 | -2/Protoforge | Destroyed Decapitator 10601 | -2/Protoforge | Superfortress began startup sequence 10605 | -2/Protoforge | Destroyed Decapitator 10606 | -2/Protoforge | Destroyed Decapitator 10658 | -2/Protoforge | Found Prototype Slashing Weapon 10658 | -2/Protoforge | Identified Cep. Deflector Sword 10670 | -2/Protoforge | Destroyed V269-j 10680 | -2/Protoforge | Found Prototype Energy Cannon 10680 | -2/Protoforge | Identified Cep. Plasma Driver 10720 | -2/Protoforge | Spotted Decapitator 10721 | -2/Protoforge | Spotted Decapitator 10721 | -2/Protoforge | Spotted Decapitator 10721 | -2/Protoforge | Spotted V875-q 10722 | -2/Protoforge | Spotted V377-n 10740 | -2/Protoforge | Found Cep. Fieldthrust Drive 10745 | -2/Protoforge | Found Faulty Cep. Fieldthrust Drive 10796 | -2/Protoforge | Destroyed Decapitator 10814 | -2/Protoforge | Spotted V603-o 10814 | -2/Protoforge | Spotted V147-g 10834 | -2/Protoforge | First assault squad dispatched 10836 | -2/Protoforge | Found Cep. Rapid Grenade Launcher 10935 | -2/Protoforge | Spotted Decapitator 10935 | -2/Protoforge | Spotted Decapitator 10942 | -2/Protoforge | Spotted Immortal 10943 | -2/Protoforge | Spotted Immortal 10953 | -2/Protoforge | Build established: Hacker-Sprinter 11011 | -2/Protoforge | Found Prototype Device 11011 | -2/Protoforge | Identified Femtoactuators 11045 | -2/Protoforge | Additional patrols dispatched to research labs 11048 | -2/Protoforge | Found Alien Artifact 11048 | -2/Protoforge | Identified Cep. Nanofilaments [Tensile] 11048 | -2/Protoforge | Installed Cep. Nanofilaments [Tensile], 3 resistances modified: KI +20%, TH -10%, I +20% 11079 | -2/Protoforge | Found Transdimensional Reconstructor 11092 | -2/Protoforge | Spotted AP7-3 11093 | -2/Protoforge | Core integrity fell below 50% 11103 | -2/Protoforge | Found Prototype Device 11103 | -2/Protoforge | Identified Cep. Networked Targeting System 11109 | -2/Protoforge | Spotted AP7-3 11161 | -2/Protoforge | Destroyed AP7-3 11195 | -2/Protoforge | Lost 6 parts (3p2n1u) 11206 | -2/Protoforge | System corruption reached 10% 11221 | -2/Protoforge | Core integrity fell below 20% 11230 | -2/Protoforge | Found Cep. Impact Drone Bay 11232 | -2/Protoforge | Found Cep. Cloak Mesh 11234 | -2/Protoforge | Warped through subspace to slip node 11250 | -2/Protoforge | Lost 4 parts (1n2u1w) 11384 | -2/Protoforge | Spotted AP7-3 11385 | -2/Protoforge | Spotted AP7-3 11399 | -2/Protoforge | Allies destroyed AP7-3 11403 | -2/Protoforge | Allies destroyed AP7-3 11421 | -2/Protoforge | Spotted B-90 Cyclops 11431 | -2/Protoforge | Spotted Hotshot 11431 | -2/Protoforge | Spotted Hotshot 11431 | -2/Protoforge | Spotted Hotshot 11431 | -2/Protoforge | Spotted Hotshot 11440 | -2/Protoforge | Destroyed by B-90 Cyclops with Nova Cannon Last Messages --------------- >>Alert(Purge) Purged threat record, alert level lowered. Nice move, I was getting worried our play time would come to an untimely end if you didn't get around to that. *random keyboard noises* >>Alert(Purge) Added threat record, spice level increased. >>Alert(Purge) Purged threat record, alert level lowered. *random keyboard noises* >>Alert(Purge) Added threat record, spice level increased. >>Alert(Purge) Purged threat record, alert level lowered. 11420_ System corrupted: Matter fused (-5). 11422_ W-44 Eye sends out distress signal. 11436_ System corrupted: Matter fused (-7). 11439_ B-90 Cyclops activates siege mode. 11439_ Structural Scanner destroyed. Map ----- +----------------------------------------------------+ | ???????????????????????????????????????# | | ???????????????????????????????????????# | | ???????????????????????????????????????# """"""" | | ???????????????????????????????????????# """ " | | ???????????????????????????????????????# " | | ???????????????????????????????????????# | | ???????????????????????????????????????# "" | | ???????????????????????????????????????#= %"" | | ???????????????????????????????????????#%!%"" " | | ?????????????????????? ?????????????##[ " " | | ?????????????????????+ #????????????##= " | | ?????????????????????# #????????????##%[ " " | | ?????????????????????# #????????????## " """ | | ????????????????????## ##????????##### | | ?????????###????????# ########## ### " " | | ?????????#"########## C + | | ?????????## # " "" | | ??????????# # u + "" "" | | ??????????# # ########## ### " | | ??????????# "" """ ## ###########"### "" | | ??????????# """""" ##k ##########"#### " | | ??????????# ## Y# ## "" | | ??????????# ## # "" ## " | | ??????????# ## # """" T" ## "" | | ?????# ##""#"+#####;# # """" "" ## """ | | B @ """" ######### # | | B # """" # ######### | | gg + # ########## | | # """" """" #####??????? | | """ """" """" """" """" # """" "" ####???????? | | ?"" """" """" """" """" # """" " " ##?????????? | | ??" """" """" """" """" # """" "" ##?????????? | | ?????""" """" """" """" # ##?????????? | | ?????? ? ###############?????????? | | ?????? ??? ""T"" ## ###########?????????? | | """"" # #####????????????????? | | ########+########+#############??????????????????? | | # # "#####???????????????????? | | # "?""""" # ####?????????????????????? | | # """"""" # ###??????????????????????? | | # """"""" # ##???????????????????????? | | # # """" ##???????????????????????? | | # """"""" # """" ##???????????????????????? | | # """"""" + """" ##???????????????????????? | | # """"""" # """" ##???????????????????????? | | " # # ##???????????????????????? | | " # ""T"" ###########???????????????????????? | | # """"" ###########???????????????????????? | | # !![##????????????????????????????????? | | ##"##########%###????????????????????????????????? | +----------------------------------------------------+ Best States ------------- Heat Dissipation 68 Energy Generation 54 Energy Capacity 1350 Matter Stores 300 Matter Capacity 300 Sight Range 22 Robot Scan Range 18 Terrain Scan Range 14 Terrain Scan Density 85 ECM Strength 2 Jamming Range 16 Cloak Strength 6 Armor Coverage 600 Resistance: KI 20 Resistance: I 20 Propulsion Shielding 66 Melee Speed Boost 50 Evasion (%) 79 Melee Accuracy 11 Recoil Reduction 2 Offensive Hacking 36 Defensive Hacking 20 Authchip Count 1 Item Schematics ----------------- Cesium-ion Thruster | -8/Materials | Scanalyzed Hacking Suite | -8/Materials | Scanalyzed ECM Suite | -8/Materials | Scanalyzed Seismic Detector | -8/Materials | Extracted Hardlight Generator | -8/Materials | Extracted Imp. Utility Shielding | -8/Materials | Extracted Trap Scanner | -8/Materials | Extracted Hvy. Mace | -8/Materials | Extracted EM Shotgun | -8/Materials | Extracted Trap Extractor | -8/Materials | Hacked Adv. Treads | -8/Storage | Hacked Hcp. Storage Unit | -8/Recycling | Hacked Imp. System Restoration Module | -6/Factory | Scanalyzed Lrn. Terrain Scanner | -6/Factory | Hacked Nanoactuators | -6/Factory | Hacked Adv. Shield Generator | -6/Factory | Hacked Graphene Brace | -6/Factory | Scanalyzed Hvy. Armor Plating | -6/Factory | Scanalyzed Mic. Antimatter Reactor | -5/Hub_04(d) | Hacked Imp. Salvage Targeting Computer | -4/Factory | Extracted Imp. Component Analysis Suite | -4/Factory | Extracted Disruptor Cannon | -4/Factory | Extracted Spear | -4/Factory | Extracted Hvy. Shock Bomb Launcher | -4/Factory | Extracted Matter Compressor | -4/Factory | Extracted Adv. Thermal Shield | -4/Factory | Extracted Biomechanical Wings | -4/Factory | Extracted Centrium Medium Armor Plating | -3/Research | Scanalyzed Exp. Q-thruster | -3/Testing | Hacked Exp. Thermal Shield | -3/Testing | Archive Exp. Cooling System | -3/Testing | Archive Imp. Q-thruster | -3/Testing | Hacked Prc. Phase Gun | -2/Quarantine | Archive Exp. Heat Sink | -2/Quarantine | Archive Exp. Transmission Jammer | -2/Quarantine | Archive Exp. Signal Interpreter | -2/Protoforge | Archive Exp. Gyrokinetic Inverter | -2/Protoforge | Archive Exp. Matter Compressor | -2/Protoforge | Archive Cld. Impulse Thruster | -2/Protoforge | Archive Helical Railgun | -2/Protoforge | Archive Imp. Energy Well | -2/Protoforge | Archive Robot Schematics ------------------ M-28 Smith | -8/Recycling | Hacked G-50 Soldier | -6/Factory | Hacked A-15 Conveyor | -3/Testing | Archive R-06 Scavenger | -2/Quarantine | Archive H-77 Assassin | -2/Protoforge | Archive M-30 Cleanser | -2/Protoforge | Archive Fabricated ------------ Cesium-ion Thruster | x2 | -6/Factory | Authchip Hvy. Armor Plating | x1 | -5/Factory G-50 Soldier | x3 | -5/Factory | Preloaded Impulse Thruster Array | x1 | -4/Factory | Preloaded Repaired ---------- Enh. Fission Core | 11% | -4/Factory Studied --------- Flight Unit | -8/Materials | Hacked Lgt. Assault Rifle | -8/Materials | Hacked Lgt. Deuterium Engine | -8/Materials | Hacked Cesium-ion Thruster | -8/Materials | Hacked Lgt. Ion Engine | -8/Materials | Hacked Lgt. Nuclear Core | -6/Factory | Hacked VTOL Module | -6/Factory | Hacked Nuclear Pulse Thruster | -6/Factory | Hacked Xenon Bombardment Thruster | -6/Factory | Hacked Lgt. Angular Momentum Engine | -6/Factory | Hacked Mic. Fission Core | -5/Factory | Hacked Impulse Thruster Array | -4/Factory | Hacked Lgt. Antimatter Reactor | -4/Factory | Hacked Hyp. Railgun | -3/Research | Hacked Field Propulsion Array | -3/Testing | Hacked Mic. Antimatter Reactor | -3/Testing | Hacked Q-thruster | -2/Quarantine | Hacked Alien Tech Used ----------------- Dimensional Node Initializer Core Cannon Transdimensional Reconstructor Subatomic Replicator Concept Nanofilaments [Tensile] Supercharged TR Achievements -------------- None Challenges ------------ None Game ------ Seed VoltaicBiometalPurifier Manual? 0 Play Time 03:59:58 Cumulative 949.2 hours Start 2026.03.01 @ 09:31:25 End 2026.03.02 @ 18:02:45 Sessions 9 Manual Loads 0 Difficulty Rogue Special Mode None Game No. 364 Rogue 364 Adventurer 0 Explorer 0 Win Type - Total 98 Types 46/6/17/9/8/1/2/3/1/5 Lore% 98 Gallery% 88 Achievement% 87 Wizard Run 0 Options --------- Layout 1 ASCII 0 Keyboard 0 Movement Numpad Keybinds 0 Fullscreen 1 Font 24/Smallcaps Map View 50x35 Zoom Use 0% Tactical HUD 1 Map Filters NONE Filters NONE Steam 1 RUN: 0629cffb-1021-4425-a7f4-923f09851030